{"text_format":"1","workbook":"xlsx","n_sheets":14,"sheets":["Contenido","Introducción","1.Datos Generales","2.Caracteristicas","3.Metodologias","4.Procedimientos","5.Riesgos","6.Emisiones CO2","7.Otras emisiones","8.Registro de Verificaciones","9.Anexos","Catalogos","Ejemplos","Hoja1"],"not_rendered":{"charts":0,"images":1,"macros":1,"external_links":0,"defined_names":29,"comments":0,"pivot_tables":0},"unopened":[],"bounds":{"document_bytes":16777216,"sheet_cells":100000,"rows_first":2000,"rows_last":500,"rows_between":2000,"halvings":0,"cell_chars":16384,"cell_head_chars":4096},"cells_cut":0,"cells_raw":0,"read":"whole","date_system":"1900"}

{"sheet":"Contenido","index":0,"n_rows":49,"n_cols":3,"rows_kept":49,"cut":false,"hidden":false,"merged":[[17,2,17,9],[12,2,12,9],[13,2,13,9],[14,2,14,9],[15,2,15,9],[16,2,16,9],[30,2,30,9],[18,2,18,9],[19,2,19,9],[20,2,20,9],[21,2,21,9],[22,2,22,9],[24,2,24,9],[23,2,23,9],[25,2,25,9],[26,2,26,9],[27,2,27,9],[28,2,28,9],[29,2,29,9],[47,2,47,10],[32,2,32,9],[33,2,33,9],[35,2,35,9],[36,2,36,9],[45,2,45,9],[31,2,31,9],[34,2,34,9],[38,2,38,9],[40,2,40,9],[42,2,42,9],[9,1,9,9],[46,2,46,9],[48,2,48,9],[1,1,1,9],[2,1,2,9],[3,1,3,9],[4,1,4,9],[5,1,5,9],[6,1,6,9],[7,1,7,9],[8,1,8,9],[37,2,37,9],[39,2,39,9],[41,2,41,9],[43,2,43,9],[44,2,44,9]]}
[]
[null,"Contenido"]
[null,"Los siguientes, son enlaces directos a las diversas secciones que conforman el Plan de Monitoreo:"]
[null,"Introducción al Plan de Monitoreo"]
[null,"Aplicabilidad y uso"]
[null,"Objetivo"]
[null,"¿Qué es y para qué sirve el Plan de Monitoreo?"]
[null,"Definiciones"]
[null,"Recomendaciones"]
[null,"Referencias"]
[]
[null,"Secciones del Plan de Monitoreo"]
[null,null,"1.       Datos generales del Participante"]
[null,null,"a.       Instalación"]
[null,null,"b.       Datos de Contacto"]
[null,null,"c.       Registro de Planes de Monitoreo (actualizaciones)"]
[null,null,"2.       Características de las instalaciones generadoras de GEI"]
[null,null,"a.       Lista de actividades"]
[null,null,"b.       Diagrama de actividades de la instalación"]
[null,null,"c.       Lista de fuentes de emisión"]
[null,null,"d.       Lista de puntos de emisión"]
[null,null,"e.       Lista de equipos de medición"]
[null,null,"f.        Categorías de emisión"]
[null,null,"3.       Aspectos metodológicos"]
[null,null,"a.       Lista de metodologías"]
[null,null,"b.       Registro de datos de actividad"]
[null,null,"c.       Factores de emisión"]
[null,null,"d.       Poderes caloríficos"]
[null,null,"e.       Potenciales de Calentamiento Global"]
[null,null,"f.        Balance de materia (si aplica)"]
[null,null,"g.       Medición directa (si aplica)"]
[null,null,"4.       Procedimientos"]
[null,null,"a.       Registro de Procedimientos"]
[null,null,"b.       Detalle de los Procedimientos"]
[null,null,"5.       Análisis de riesgos"]
[null,null,"a.       Inherentes  "]
[null,null,"b.       De control"]
[null,null,"c.       Resultados de la evaluación de riesgos"]
[null,null,"6.       Reporte de emisiones directas de CO2"]
[null,null,"a.       Registro histórico de emisiones directas por fuentes fijas y procesos industriales"]
[null,null,"7.       Reporte de otras emisiones de GEI (opcional)"]
[null,null,"a.       Registro de otras emisiones directas e indirectas"]
[null,null,"8.       Historial de Verificaciones"]
[null,null,"a.       Registro de verificaciones para el Programa de Prueba del SCE"]
[null,null,"Año 2020"]
[null,null,"Año 2021"]
[null,null,"Año 2022"]
[null,null,"9.       Anexos "]
[null,null,"Sección para adjuntar los archivos que el Participante considere pertinentes."]

{"sheet":"Introducción","index":1,"n_rows":88,"n_cols":6,"rows_kept":88,"cut":false,"hidden":false,"merged":[[84,2,84,13],[85,2,85,13],[86,2,86,13],[87,2,87,13],[75,2,75,13],[76,2,76,13],[77,2,77,13],[79,2,79,13],[83,2,83,13],[78,2,78,13],[80,2,80,13],[82,4,82,13],[69,2,69,13],[70,2,70,13],[71,2,71,13],[72,2,72,13],[74,2,74,13],[61,2,61,13],[62,2,62,13],[63,2,63,13],[64,2,64,13],[68,2,68,13],[55,2,55,13],[57,2,57,13],[58,2,58,13],[59,2,59,13],[60,2,60,13],[56,2,56,13],[48,2,48,13],[49,2,49,13],[50,2,50,13],[53,2,53,13],[54,2,54,13],[45,2,45,13],[46,2,46,13],[47,2,47,13],[28,2,28,13],[25,2,25,13],[27,2,27,13],[26,2,26,13],[24,2,24,13],[5,2,5,13],[7,2,7,13],[8,2,8,13],[9,2,9,13],[13,2,13,13],[17,2,17,13],[18,2,18,13],[19,2,19,13],[20,2,20,13],[21,2,21,13],[6,4,6,13]]}
[]
[]
[null,"Introducción al Plan de Monitoreo"]
[null,"Aplicabilidad y uso"]
[]
[null,"1.-","El presente formato se realizó con base en el contenido del Plan de Monitoreo que establece el artículo cuadragésimo segundo del Acuerdo por el cual se establecen las Bases Preliminares del Programa de Prueba del Sistema de Comercio de Emisiones, para uso de los Participantes del Programa de Prueba. "]
[null,null,"Consulte el Acuerdo aquí: ",null,"https://www.dof.gob.mx/nota_detalle.php?codigo=5573934&fecha=01/10/2019 "]
[null,"2.-","El formato es de libre distribución y está dirigido a los Participantes del Programa de Prueba del Sistema de Comercio de Emisiones, para dar cumplimiento al Artículo Cuadragésimo Primero del Acuerdo por el cual se establecen las Bases Preliminares del Programa de Prueba del Sistema de Comercio de Emisiones. Sin embargo, por sus características, cualquier establecimiento generador de emisiones de gases de efecto invernadero podrá usarlo para documentar sus procedimientos de monitoreo y facilitar su reporte, si es el caso."]
[null,"3.-","El formato contiene algunos ejemplos prácticos, así como instrucciones de llenado en cada sección y se acompaña de la Guía de llenado del Plan de Monitoreo."]
[null,"4.-","Corresponde a la SEMARNAT la revisión del Plan de Monitoreo, cuando así lo considere necesario."]
[]
[null,"Objetivo"]
[]
[null,"5.-","El objetivo de este formato es facilitar a los Participantes la elaboración del Plan de Monitoreo de conformidad con el Articulo Cuadragésimo Primero del Acuerdo por el cual se establecen las Bases Preliminares del Programa de Prueba del Sistema de Comercio de Emisiones."]
[]
[null,"¿Qué es y para qué sirve el Plan de Monitoreo?"]
[]
[null,"6.-","El monitoreo es una actividad permanente dentro de una instalación generadora de GEI, que es la base para realizar una adecuada estimación de emisiones, y por consiguiente, un reporte con un alto grado de certeza. El monitoreo, es el conjunto de acciones que se deben ejecutar para recopilar y manejar la información relativa a las emisiones de gases de efecto invernadero (GEI) que se generan en el año como resultado de diversas actividades y procesos dentro de un establecimiento."]
[null,"7.-","Para llevar a cabo de manera adecuada el monitoreo se requiere asignar a los responsables y establecer las actividades concretas que se llevarán a cabo para la recopilación y manejo de la información, además de establecer los mecanismos de control de calidad para asegurar que dicha información cuenta con la confiabilidad necesaria. Estos mecanismos pueden ser auditorías internas, cruces de información, revisiones aleatorias, entre otras, y deben incluir las capacitaciones al personal con la frecuencia que resulte necesaria."]
[null,"8.-","El Plan de Monitoreo es un documento a través del cual se registran los procesos, actividades, puntos de emisión, las variables de monitoreo y la información relativa que conduzca a una estimación de emisiones precisa y consistente."]
[null,"9.-","El formato constituye el Plan de Monitoreo una vez que se encuentre completamente lleno con la información que sustenta la estimación de emisiones y el reporte anual del Participante, incluyendo las actividades y procesos, las fuentes de emisión, los equipos generadores de GEI, las variables monitoreadas para la obtención de los datos de actividad correspondientes, los equipos de medición asociados, además de los procedimientos de recopilación de información y sus riesgos inherentes y de control."]
[null,"10.-","El Plan de Monitoreo permitirá registrar la información por cada proceso y actividad generadora de GEI en el establecimiento, documentando de manera precisa, el proceso de estimación y reporte de emisiones, e induciendo al establecimiento a implementar los procedimientos necesarios para conducir de manera organizada el monitoreo de emisiones, contribuyendo a construir el MRV con el nivel de confianza requerido, establecido en la Ley General de Cambio Climático."]
[]
[null,"Definiciones"]
[null,null,"Ver la Guía de Llenado del Plan de Monitoreo para la consulta de más definiciones."]
[null,null,"Análisis de Riesgos: La evaluación cualitativa y/o cuantitativa que el Participante debe realizar para identificar y manejar riesgos inherentes (riesgos de que se produzcan errores, extravíos o desviaciones atribuibles al manejo de información del establecimiento) y de control (riesgo de que el sistema de control interno del establecimiento no pueda prevenir, detectar y/o corregir errores). Por la naturaleza de las actividades de recopilación y manejo de información de GEI, pueden existir riesgos potenciales de que los responsables de estas tareas no detecten este tipo de errores, por el cual es importante realizar y documentar este análisis, de modo que el establecimiento sea capaz de establecer medidas preventivas, de control y de mitigación en caso de que se susciten estos riesgos. Esto contribuirá a generar una información de calidad."]
[null,null,"Categorías de Emisión: \nMayor: Aquellas fuentes que en su conjunto emiten más de 5,000 tCO2 o más del 10% del total de emisiones directas de CO2 de la instalación.\nMenor: Aquellas fuentes que conjuntamente corresponden a menos de 5,000 tCO2 o a menos del 10% del total de emisiones directas de CO2 de la instalación (hasta un   máximo de 100,000 tCO2 anuales) cualquiera que sea el valor mayor en términos absolutos.\nDe-minimis: Aquellas fuentes que conjuntamente corresponden a menos de 1,000 tCO2 o a menos del 2% del total de emisiones directas de CO2 de la instalación (hasta un máximo de 20,000 tCO2 anuales) cualquiera que sea el valor mayor en términos absolutos."]
[null,null,"Controles de calidad: Las acciones que se ejecutan dentro del establecimiento para garantizar la calidad de la información de GEI generada, identificar áreas de oportunidad y detonar la mejora continua de los procedimientos. Ejemplos de controles de calidad son el establecimiento de un programa de auditorías internas y capacitación, entre otros."]
[null,null,"Participante:  Instalaciones que generan emisiones anuales iguales o mayores a 100,000 toneladas de CO2 provenientes de fuentes fijas, de los siguientes sectores y subsectores, de conformidad con el Reglamento de la LGCC en materia del RENE:"]
[null,null,null,"Sector Energía, subsectores:"]
[null,null,null,null,"a)","Subsector explotación, producción, transporte y distribución de hidrocarburos"]
[null,null,null,null,"b)","Subsector generación, transmisión y distribución de electricidad"]
[null,null,null,"Sector Industria, subsectores: "]
[null,null,null,null,"a)","Subsector industria automotriz"]
[null,null,null,null,"b)","Subsector industria cementera y calera"]
[null,null,null,null,"c)","Subsector industria química"]
[null,null,null,null,"d)","Subsector industria de alimentos y bebidas"]
[null,null,null,null,"e)","Subsector industria del vidrio"]
[null,null,null,null,"f)","Subsector industria siderúrgica"]
[null,null,null,null,"g)","Subsector industria metalúrgica"]
[null,null,null,null,"h)","Subsector industria minera"]
[null,null,null,null,"i)","Subsector industria petroquímica "]
[null,null,null,null,"j)","Subsector industria de celulosa y papel, y"]
[null,null,null,null,"k)","Otros subsectores industriales que generen emisiones directas provenientes de fuentes fijas."]
[]
[null,null,"Plan de Monitoreo: El documento en el cual se describe el proceso para elaborar el reporte de emisiones que los Participantes presentan ante el Registro Nacional de Emisiones (fracción XII del artículo tercero del Acuerdo)."]
[null,null,"El Plan de Monitoreo constituye una herramienta para documentar el o los procesos involucrados desde la recopilación de la información de origen en las fuentes de emisión, hasta el reporte que se presenta ante el Registro."]
[null,null,"Para efectos del Programa de Prueba, el presente formato corresponde al Plan de Monitoreo del Participante"]
[null,null,"Procedimientos: El conjunto de acciones que bajo la responsabilidad de los asignados en la instalación, se realizan para la recopilación y manejo de información de GEI. Los procedimientos pueden formar parte de un sistema de gestión interno, certificado o no. No obstante, los procedimientos pueden estar escritos o ejecutarse sin documentación oficial que los sustente. "]
[null,null,"Se recomienda al Participante, documentar los procedimientos de recopilación y manejo de información de GEI que se lleven a cabo en la instalación."]
[null,null,"Sistema de Gestión: Conjunto de políticas y procedimientos enfocados al manejo de información dentro de un establecimiento. Un sistema de gestión puede estar certificado bajo estándares nacionales o internacionales (como ISO 9001), o puede ser interno."]
[]
[null,"Recomendaciones"]
[null,null,"1.     Leer la Guía de llenado del Plan de Monitoreo previo o cuando se esté llenando el formato."]
[null,null,"2.     Se recomienda que el formato sea llenado por un único responsable dentro del establecimiento."]
[null,null,"3.     Actualizar y registrar cada versión del Plan de Monitoreo si:"]
[null,null,"Se realizan modificaciones al contacto principal y/o al contacto alternativo del Plan de monitoreo"]
[null,null,"Se agregan nuevos flujos fuentes o fuentes de emisión que no formaban parte del Plan de monitoreo"]
[null,null,"Se modifica el nivel aplicado (Tier) (previa aprobación de SEMARNAT)"]
[null,null,"Se realizan modificaciones sustanciales a los procesos"]
[null,null,"Se cambia de la metodología de monitoreo, por ej. del método de factores de emisión al balance de masas o a medición continua de emisiones"]
[null,null,"Se realizan cambios de equipos o de instrumentos de medición con especificaciones distintas a los anteriores"]
[null,null,"Se realizan cambios del plan de muestreo en términos de estándares aplicados, procedimiento de muestreo o tratamiento, reducción de frecuencia de muestreo"]
[null,null,"Se reduce la frecuencia de análisis"]
[null,null,"Se aumenta o reduce sustancialmente la producción"]
[]
[null,"Referencias"]
[null,null,"Ley General de Cambio Climático (última reforma 13/07/2018)"]
[null,null,"http://www.diputados.gob.mx/LeyesBiblio/pdf/LGCC_130718.pdf"]
[null,null,"Artículo 87 que establece la integración del Registro Nacional de Emisiones (RENE), de las emisiones generadas por las fuentes fijas y móviles que se identifiquen como sujetas a reporte."]
[null,null,"Artículo 87 fracción IV que establece que el sistema Monitoreo, Reporte y Verificación serán elementos que integren el Registro para garantizar la integridad, consistencia, transparencia y precisión de los reportes de emisiones."]
[null,null,"Artículo 90 que establece que las disposiciones reglamentarias de la Ley establecerán los procedimientos y reglas para llevar a cabo el monitoreo, reporte y verificación de emisiones."]
[null,null,"Artículo 94 que señala que la Secretaría establecerá de forma progresiva y gradual un sistema de comercio de emisiones con el objetivo de promover reducciones de emisiones que puedan llevarse a cabo con el menor costo posible, de forma medible, reportable y verificable, sin vulnerar la competitividad de los sectores participantes frente a los mercados internacionales."]
[null,null,"Reglamento de la Ley General de Cambio Climático en materia de Registro Nacional de Emisiones (D.O.F. 28/10/2014)"]
[null,null,"http://biblioteca.semarnat.gob.mx/janium/Documentos/Ciga/agenda/DOFsr/DO3452.pdf"]
[null,null,"Artículo 9 que establece las obligaciones de los Establecimientos Sujetos a Reporte."]
[null,null,"Articulo 16 que establece la entrega del dictamen de verificación cada tres años por medio de un organismo acreditado y aprobado para tales efectos."]
[null,null,"Nota 1:Los Establecimientos Sujetos a Reporte deben estimar sus emisiones de conformidad con el Acuerdo que establece las particularidades técnicas y las fórmulas para la aplicación de metodologías para el cálculo de emisiones de gases o compuestos de efecto invernadero (D.O.F. 03/09/2015), mediante balance de materia o medición directa. Cuando el establecimiento determine que cuenta con una metodología más precisa para uno o varios procesos generadores de GEI, debe someter dicha metodología a aprobación de la SEMARNAT.  Consulte el Acuerdo metodológico aquí: "]
[null,null,"http://www.semarnat.gob.mx/sites/default/files/documentos/cicc/acuerdo_que_establece_las_particularidades_tecnicas_y_las_formulas_para_la_aplicacion_de_metodologias.pdf"]
[null,null,"Nota 2: Se cuenta con el Acuerdo que establece los gases de efecto invernadero que se agrupan para efectos de reporte y sus potenciales de calentamiento (D.O.F. 14/08/2015). Consulte el Acuerdo aquí: "]
[null,null,"http://www.semarnat.gob.mx/sites/default/files/documentos/dof_acuerdo_de_agrupacion.pdf"]
[null,null,"Acuerdo por el que se establecen las Bases Preliminares del Programa de Prueba del Sistema de Comercio de Emisiones"]
[null,null,"Disponible en: ",null,"https://dof.gob.mx/nota_detalle.php?codigo=5573934&fecha=01/10/2019"]
[null,null,"Artículo tercero fracción XI, que define al Participante."]
[null,null,"Artículo séptimo, establece la aplicabilidad del Programa de Prueba a las instalaciones de los sectores energía e industria para efectos del Programa de Prueba. "]
[null,null,"Artículo octavo, establece el umbral de 100,000 toneladas anuales de CO2 de emisiones directas provenientes de fuentes fijas para efectos del Programa de Prueba."]
[null,null,"Artículo cuadragésimo primero, establece que los Participantes deben elaborar un Plan de Monitoreo, en base al cual medirán y estimarán sus emisiones anuales de CO2, por lo que deben revisar periódicamente que el Plan refleje el funcionamiento de la instalación de manera adecuada, y si resulta necesario, actualizarlo con base en los conocimientos científicos y técnicos más recientes de medición o metodologías de cálculo, considerando instrumentos de medición, metodologías de muestreo o análisis, o que por otros motivos mejoren la exactitud en la determinación de las emisiones."]
[null,null,"Artículo cuadragésimo segundo, indica el contenido general que debe precisar el Plan: descripción general de la instalación, el listado de las fuentes fijas de emisiones reguladas sujetas a monitoreo y su descripción, la información sobre los datos de actividad y el procedimiento para su medición u obtención, así como los procedimientos de su manejo interno, la metodología de cálculo, y los factores de emisión utilizados; la frecuencia de registros de mediciones, calibraciones de equipos, muestreos y demás procesos que originan la información, y la lista de procedimientos de gestión, control y de evaluación del Plan de Monitoreo."]

{"sheet":"1.Datos Generales","index":2,"n_rows":56,"n_cols":16,"rows_kept":56,"cut":false,"hidden":false,"merged":[[31,1,31,12],[54,1,54,12],[61,4,61,6],[62,4,62,6],[63,4,63,6],[53,1,53,12],[55,1,55,3],[55,4,55,6],[55,7,55,12],[56,1,56,3],[57,1,57,3],[58,1,58,3],[59,1,59,3],[60,1,60,3],[61,1,61,3],[62,1,62,3],[61,7,61,12],[62,7,62,12],[63,7,63,12],[64,7,64,12],[56,4,56,6],[57,4,57,6],[58,4,58,6],[59,4,59,6],[60,4,60,6],[56,7,56,12],[57,7,57,12],[58,7,58,12],[59,7,59,12],[60,7,60,12],[63,1,63,3],[64,1,64,3],[27,8,27,12],[21,1,21,7],[23,1,23,7],[27,1,27,7],[25,1,25,7],[21,8,21,12],[23,8,23,12],[25,8,25,12],[42,8,42,12],[44,8,44,12],[46,8,46,12],[48,8,48,12],[50,8,50,12],[64,4,64,6],[15,8,15,12],[17,8,17,12],[1,0,3,0],[7,1,7,6],[9,1,9,6],[11,1,11,6],[1,1,3,4],[6,1,6,12],[19,1,19,6],[19,8,19,12],[30,1,30,12],[5,1,5,12],[40,8,40,12],[32,8,32,12],[34,8,34,12],[36,8,36,12],[38,8,38,12],[13,1,13,6],[15,1,15,6],[17,1,17,6],[7,8,7,12],[9,8,9,12],[11,8,11,12],[13,8,13,12]]}
[]
[null,"1. Datos Generales",null,null,null,null,"Contenido","Hoja Anterior","Hoja Siguiente"]
[]
[]
[]
[null,"a. Instalación"]
[null,"En esta sección se deberán registrar los datos generales que identifiquen al Participante y su umbral de emisiones directas de CO2. Además deberá proporcionar los datos de dos personas que puedan ser  contactadas para aclaraciones específicas sobre el Plan de Monitoreo."]
[null,"Razón Social de la Empresa"]
[]
[null,"RFC"]
[]
[null,"Nombre de la instalación"]
[]
[null,"NRA ",null,null,null,null,null,null,null,null,null,null,null,null,null,"."]
[null,null,null,null,null,null,null,null,null," "]
[null,"Sector"]
[]
[null,"Subsector",null,null,null,null,null,null,"Otros"]
[]
[null,"Emisiones directas estimadas al año de CO2 (tCO2)"]
[]
[null,"Emisiones directas estimadas al año de otros gases (tCO2e)"]
[]
[null,"Emisiones indirectas estimadas al año (tCO2e)"]
[]
[null,"Versión del Plan de Monitoreo"]
[]
[null,"Fecha de la última versión del Plan de Monitoreo"]
[]
[]
[null,"b. Datos de contacto (para temas del Plan de Monitoreo)"]
[null,"Proporcionar un contacto principal y un contacto alternativo para aclaraciones relativas al Plan de Monitoreo. Se recomienda que los datos de contacto proporcionados sean parte del personal responsable de la recopilación de información y del llenado del Plan de Monitoreo."]
[null,"a) Contacto Principal",null,null,"Nombre"]
[]
[null,null,null,null,"Apellidos"]
[]
[null,null,null,null,"Puesto"]
[]
[null,null,null,null,"Teléfono"]
[]
[null,null,null,null,"Email"]
[]
[null,"a) Contacto Alternativo",null,null,"Nombre"]
[]
[null,null,null,null,"Apellidos"]
[]
[null,null,null,null,"Puesto"]
[]
[null,null,null,null,"Teléfono"]
[]
[null,null,null,null,"Email"]
[]
[]
[null,"c. Registro de Planes de Monitoreo (actualizaciones)"]
[null,"En esta sección se deberán registrar las versiones del Plan de Monitoreo que resulten, cada vez que sea necesaria una modificación o ajuste de relevancia, de conformidad con lo establecido en las Recomendaciones de este formato.\nVersión de Plan: El nombre o identificador asignado por el Participante que debe contener tres iniciales mayústulas del NRA del establecimiento (XXX) seguido de un guión bajo (_), el año con 2 dígitos (aa), guión bajo (_), la palabra abreviada \"ver\" y un número consecutivo. Ejemplo: XYZ_19_ver1\nFecha: Fecha de actualización (dd/mm/aa).\nDescripción de las modificaciones: mencionar los aspectos específicos que suscitaron la actualización del Plan.\nNota: El Participante deberá conservar las diversas versiones de Planes de Monitoreo que se registren."]
[null,"Versión del Plan",null,null,"Fecha",null,null,"Descripción de las modificaciones o ajustes"]

{"sheet":"2.Caracteristicas","index":3,"n_rows":123,"n_cols":13,"rows_kept":123,"cut":false,"hidden":false,"merged":[[6,1,6,7],[6,8,6,12],[34,1,34,8],[35,1,35,8],[81,1,81,5],[81,6,81,10],[103,1,103,9],[5,1,5,12],[57,1,57,11],[58,1,58,6],[58,7,58,11],[29,1,29,10],[32,1,32,10],[85,2,85,4],[85,5,85,7],[71,2,71,4],[71,5,71,7],[38,2,38,4],[38,5,38,7],[61,2,61,4],[61,5,61,7],[72,2,72,4],[72,5,72,7],[47,5,47,7],[122,2,122,4],[122,5,122,7],[105,2,105,4],[105,5,105,7],[106,2,106,4],[106,5,106,7],[119,2,119,4],[119,5,119,7],[120,2,120,4],[120,5,120,7],[121,2,121,4],[107,2,107,4],[107,5,107,7],[108,2,108,4],[108,5,108,7],[121,5,121,7],[118,2,118,4],[118,5,118,7],[110,2,110,4],[110,5,110,7],[111,2,111,4],[111,5,111,7],[112,2,112,4],[112,5,112,7],[92,5,92,7],[93,2,93,4],[93,5,93,7],[94,2,94,4],[94,5,94,7],[90,2,90,4],[90,5,90,7],[92,2,92,4],[40,2,40,4],[67,2,67,4],[67,5,67,7],[68,2,68,4],[68,5,68,7],[69,2,69,4],[69,5,69,7],[70,2,70,4],[51,2,51,4],[51,5,51,7],[82,2,82,4],[50,2,50,4],[50,5,50,7],[53,2,53,4],[53,5,53,7],[44,2,44,4],[95,2,95,4],[95,5,95,7],[99,2,99,4],[99,5,99,7],[96,2,96,4],[96,5,96,7],[97,2,97,4],[97,5,97,7],[98,2,98,4],[98,5,98,7],[91,2,91,4],[87,2,87,4],[87,5,87,7],[91,5,91,7],[86,2,86,4],[80,1,80,10],[104,1,104,4],[104,5,104,9],[117,2,117,4],[117,5,117,7],[116,2,116,4],[116,5,116,7],[109,2,109,4],[109,5,109,7],[115,2,115,4],[115,5,115,7],[114,2,114,4],[114,5,114,7],[113,2,113,4],[113,5,113,7],[88,2,88,4],[88,5,88,7],[89,2,89,4],[89,5,89,7],[49,2,49,4],[49,5,49,7],[84,2,84,4],[84,5,84,7],[82,5,82,7],[83,2,83,4],[83,5,83,7],[86,5,86,7],[74,5,74,7],[74,2,74,4],[70,5,70,7],[10,2,10,4],[16,2,16,4],[16,5,16,7],[17,2,17,4],[15,5,15,7],[36,2,36,4],[60,2,60,4],[60,5,60,7],[73,2,73,4],[73,5,73,7],[41,2,41,4],[41,5,41,7],[42,2,42,4],[42,5,42,7],[40,5,40,7],[62,2,62,4],[62,5,62,7],[63,2,63,4],[63,5,63,7],[64,2,64,4],[64,5,64,7],[65,2,65,4],[36,5,36,7],[48,5,48,7],[47,2,47,4],[37,2,37,4],[37,5,37,7],[43,2,43,4],[43,5,43,7],[1,0,3,0],[7,2,7,4],[7,5,7,7],[1,1,3,3],[8,2,8,4],[8,5,8,7],[19,2,19,4],[19,5,19,7],[11,2,11,4],[11,5,11,7],[12,2,12,4],[12,5,12,7],[13,2,13,4],[13,5,13,7],[14,2,14,4],[14,5,14,7],[15,2,15,4],[9,2,9,4],[9,5,9,7],[45,5,45,7],[46,2,46,4],[46,5,46,7],[22,2,22,4],[22,5,22,7],[23,2,23,4],[23,5,23,7],[39,2,39,4],[39,5,39,7],[44,5,44,7],[45,2,45,4],[10,5,10,7],[65,5,65,7],[66,2,66,4],[52,2,52,4],[52,5,52,7],[75,2,75,4],[75,5,75,7],[76,2,76,4],[76,5,76,7],[17,5,17,7],[18,2,18,4],[18,5,18,7],[48,2,48,4],[21,2,21,4],[21,5,21,7],[20,2,20,4],[20,5,20,7],[66,5,66,7],[59,2,59,4],[59,5,59,7],[24,2,24,4],[24,5,24,7],[28,1,28,10],[30,1,30,10]]}
[]
[null,"2. Características",null,null,"Contenido","Hoja Anterior","Hoja Siguiente"]
[]
[]
[]
[null,"a. Lista de actividades"]
[null,"En esta tabla, enlistar todas las actividades generadoras de GEI del establecimiento.\n1. Identificación predeterminada de las actividades como \"A1, A2, A3...\". No modificar la celda.\n2. Indicar el nombre de la actividad que corresponde a cada actividad identificada como A1, A2, etc. \n3. Describir brevemente la actividad generadora de GEI. \n4. Cuando aplique, registrar la capacidad instalada asociada a la actividad  generadora de GEI.\n5. Registrar las unidades correspondientes a la capacidad instalada. ",null,null,null,null,null,null,"6. Determinar el GEI emitido correspondiente con la actividad. De manera obligatoria para los Participantes, el GEI emitido que se debe registrar es el CO2 proveniente de emisiones directas de fuentes fijas y de procesos industriales. Aunque es posible registrar otros GEI's voluntariamente.\n7 y 8. De manera voluntaria, el Participante podrá indicar si existen otros GEI emitidos de manera directa en la actividad correspondiente. Elegir de la lista desplegable CO2, CH4 o N2O."]
[null,"Actividad (1)","[Nombre] (2)",null,null,"Breve descripción (3)",null,null,"Capacidad Instalada \n(4)","Capacidad Unidades \n(5)","GEI emitido (6)","GEI Emitido Directamente\n(7)","GEI Emitido Directamente\n(8)"]
[null,"Aej1","Combustión de combustibles",null,null,"Para generación de energía eléctrica",null,null,50,"MW","CO2","CH4","N2O"]
[null,"Aej2","Producción de cemento",null,null,"Horno de clinker",null,null,1500,"t/día","CO2"]
[null,"A1"]
[null,"A2"]
[null,"A3"]
[null,"A4"]
[null,"A5"]
[null,"A6"]
[null,"A7"]
[null,"A8"]
[null,"A9"]
[null,"A10"]
[null,"A11"]
[null,"A12"]
[null,"A13"]
[null,"A14"]
[null,"A15"]
[]
[]
[]
[null,"b. Diagrama de actividades de la instalación"]
[null,"Ver el anexo 1 de la Guía de llenado del Plan de Monitoreo"]
[null,"Proporcione un diagrama simple en donde se identifiquen Actividades (A1, A2, A3…),, fuentes de emisión (F1, F2…) y equipos de medición (EM1, EM2..) conforme se registren en las secciones correspondientes.\nNombre del archivo y extensión (p.e. Diagrama.pdf, Diagrama.jpg)"]
[]
[null,"XYZ_produccion_prod_quim.jpg"]
[]
[null,"c. Lista de fuentes de emisión"]
[null,"Registrar en cada fila la fuente de emisión que corresponde a la actividad generadora de GEI:\n1. Clave predeterminada con que se identifica la fuente de emisión a registrar. No modificar la celda.\n2. Nombre de la fuente de emisión.\n3. Proporcionar una descripción simple de la fuente de emisión registrada. Se recomienda que esta descripción mencione el proceso específico del que forma parte.\n4. De la lista despegable, seleccionar la actividad a la cual se asocia la fuente de emisión de acuerdo a la sección 2a \"Lista de actividades\"."]
[null,"Fuente de Emisión (1)","[nombre] (2)",null,null,"Breve descripción (3)",null,null,"Actividad Asociada (4)"]
[null,"Fej1","Turbina de gas natural",null,null,"Turbina de generación eléctrica No.1",null,null,"Aej1"]
[null,"Fej2","Horno de Clinker",null,null,"Horno de clinker 3000 t/d",null,null,"Aej2"]
[null,"F1"]
[null,"F2"]
[null,"F3"]
[null,"F4"]
[null,"F5"]
[null,"F6"]
[null,"F7"]
[null,"F8"]
[null,"F9"]
[null,"F10"]
[null,"F11"]
[null,"F12"]
[null,"F13"]
[null,"F14"]
[null,"F15"]
[]
[]
[]
[null,"d. Lista de puntos de emisión"]
[null,"Registrar en cada fila, los puntos de emisión que correspondan con las fuentes y las actividades generadoras de GEI.\n1. Clave predeterminada con que se identifica el punto de emisión a registrar.\n2. Proporcionar una descripción simple sobre el punto de emisión que se identifica.\n3. De acuerdo a la sección 2c \"Lista de fuentes de emisión\", seleccionar de la lista despegable la fuente de emisión correspondiente al punto de emisión registrado. Es posible seleccionar diversas fuentes de emisión para un punto de emisión registrado.\n\n",null,null,null,null,null,"4. De acuerdo a la sección 2a \"Lista de actividades\", seleccionar de la lista despegable la actividad con la que corresponde el punto de emisión asociado.\n5. Especificar el gas de efecto invernadero (GEI) que se emite en el punto de emisión identificado. De manera obligatoria para los Participantes, el GEI emitido que se debe registrar es el CO2 proveniente de emisiones directas de fuentes fijas y de procesos industriales. Si es deseable, es posible registrar otros GEI's voluntariamente.\n6 y 7. De manera voluntaria, el Participante podrá indicar si existen otros GEI emitidos de manera directa en el punto de emisión correspondiente. Elegir de la lista desplegable CO2, CH4 o N2O."]
[null,"Punto de Emisión (1)","Breve descripción (2)",null,null,"Fuente de Emisión Asociada (3)",null,null,"Actividad Asociada\n (4)","GEI Emitido (5)","GEI Emitido Directamente\n(6)","GEI Emitido Directamente\n(7)"]
[null,"Pe_ej1","Chimenea 1 (sur) turbina de gas y otros",null,null,"Fej1",null,null,"Aej1","CO2","CH4","N2O"]
[null,"Pe_ej2","Chimenea 2 (norte) general",null,null,"Fej2",null,null,"Aej2","CO2"]
[null,"Pe1"]
[null,"Pe2"]
[null,"Pe3"]
[null,"Pe4"]
[null,"Pe5"]
[null,"Pe6"]
[null,"Pe7"]
[null,"Pe8"]
[null,"Pe9"]
[null,"Pe10"]
[null,"Pe11"]
[null,"Pe12"]
[null,"Pe13"]
[null,"Pe14"]
[null,"Pe15"]
[]
[]
[]
[null,"e. Lista de equipos de medición"]
[null,"Registrar en cada fila, los puntos de emisión que correspondan con las fuentes y la actividad generadora de GEI.\n1. Clave predeterminada con que se identifica al equipo de medición.\n2. Proporcionar el nombre del equipo de medición identificado.\n3. De la lista deplegable, seleccionar la actividad identificada en la sección 2c a la que se asocia.\n4. De la lista deplegable, seleccionar la variable sujeta a medición por el equipo a registrar.",null,null,null,null,"5. Indicar la unidad en que se obtiene la variable medida por medio del equipo de medición correspondiente.\n6. De la lista deplegable, seleccionar SI APLICA el gas de efecto invernadero (GEI) que se emite en el punto de emisión identificado en [1]. De manera obligatoria para los Participantes, el GEI emitido que se debe registrar es el CO2 proveniente de emisiones directas de fuentes fijas y de procesos industriales. Si es deseable, es posible registrar otros GEI's voluntariamente."]
[null,"Equipo de Medición (1)","[nombre] (2)",null,null,"Actividad Asociada (3)",null,null,"Variable Medida\n(4)","Unidad de Medición\n(5)","GEI Medido o Asociado (si aplica) (6)"]
[null,"EM_ej1","Medidor de flujo",null,null,"Fej1",null,null,"Flujo volumétrico","t/h","CO2"]
[null,"EM_ej2","Báscula",null,null,"Fej2",null,null,"Masa","ton","CO2"]
[null,"EM1"]
[null,"EM2"]
[null,"EM3"]
[null,"EM4"]
[null,"EM5"]
[null,"EM6"]
[null,"EM7"]
[null,"EM8"]
[null,"EM9"]
[null,"EM10"]
[null,"EM11"]
[null,"EM12"]
[null,"EM13"]
[null,"EM14"]
[null,"EM15"]
[]
[]
[]
[null,"f. Categorías de emisión"]
[null,"Registrar las categorías de emisión que se asocian a los puntos anteriores:\n1. De acuerdo a la fuente identificada en la sección 2c.\n2. Proporcionar una descripción simple del proceso asociado (ver ejemplos).\n3. De la lista desplegable, seleccionar la actividad que corresponda, de acuerdo a lo registrado en la sección 2a.",null,null,null,"4. Proporcionar la cantidad de emisiones anuales estimadas, que corresponden a la fuente de emisión establecida en el punto 1, en toneladas de CO2 equivalente.\n5. Establecer si la categoría de emisión es mayor, menor o \"de-minimis\", en relación a las emisiones totales del establecimiento. Ver definiciones en la sección Introducción."]
[null,"Fuente de Emisión (1)","Breve descripción (2)",null,null,"Actividad Asociada (3)",null,null,"Emisiones estimadas al año (tCO2e) \n(4)","Categoría (5)"]
[null,"Fej1",{"$f":"IF(F38=0,\"\",F38)","v":"Turbina de generación eléctrica No.1"},null,null,{"$f":"IF(F38=0,\"\",I38)","v":"Aej1"},null,null,75000,"Mayor"]
[null,"Fej2","Horno de clinker 3000 t/d",null,null,"Aej2",null,null,145000,"Mayor"]
[null,"F1"]
[null,"F2"]
[null,"F3"]
[null,"F4"]
[null,"F5"]
[null,"F6"]
[null,"F7"]
[null,"F8"]
[null,"F9"]
[null,"F10"]
[null,"F11"]
[null,"F12"]
[null,"F13"]
[null,"F14"]
[null,"F15"]

{"sheet":"3.Metodologias","index":4,"n_rows":179,"n_cols":16,"rows_kept":179,"cut":false,"hidden":false,"merged":[[58,9,58,14],[30,12,30,14],[29,1,29,14],[87,2,87,4],[87,5,87,7],[88,2,88,4],[88,5,88,7],[89,2,89,4],[89,5,89,7],[77,2,77,4],[77,5,77,7],[78,2,78,4],[78,5,78,7],[79,2,79,4],[79,5,79,7],[80,2,80,4],[80,5,80,7],[81,2,81,4],[81,5,81,7],[61,5,61,7],[62,2,62,4],[62,5,62,7],[70,2,70,4],[63,2,63,4],[90,2,90,4],[90,5,90,7],[91,2,91,4],[91,5,91,7],[82,2,82,4],[82,5,82,7],[83,2,83,4],[83,5,83,7],[84,2,84,4],[84,5,84,7],[85,2,85,4],[85,5,85,7],[86,2,86,4],[86,5,86,7],[166,5,166,7],[167,2,167,4],[167,5,167,7],[168,2,168,4],[168,5,168,7],[137,2,137,4],[137,5,137,7],[138,2,138,4],[138,5,138,7],[139,2,139,4],[139,5,139,7],[140,2,140,4],[140,5,140,7],[158,2,158,4],[158,5,158,7],[141,2,141,4],[141,5,141,7],[142,2,142,4],[142,5,142,7],[157,2,157,4],[157,5,157,7],[143,2,143,4],[143,5,143,7],[144,2,144,4],[125,1,125,10],[127,2,127,4],[144,5,144,7],[156,2,156,4],[132,5,132,7],[133,2,133,4],[133,5,133,7],[134,2,134,4],[134,5,134,7],[135,2,135,4],[135,5,135,7],[136,2,136,4],[136,5,136,7],[132,2,132,4],[156,5,156,7],[126,10,126,15],[154,1,154,9],[155,1,155,9],[149,1,152,15],[148,1,148,15],[111,2,111,4],[111,5,111,7],[112,2,112,4],[112,5,112,7],[121,2,121,4],[113,2,113,4],[113,5,113,7],[114,2,114,4],[114,5,114,7],[65,5,65,7],[24,2,24,4],[24,5,24,7],[32,2,32,4],[32,5,32,7],[50,2,50,4],[50,5,50,7],[51,2,51,4],[43,5,43,7],[44,2,44,4],[44,5,44,7],[35,5,35,7],[36,2,36,4],[36,5,36,7],[37,2,37,4],[37,5,37,7],[38,2,38,4],[38,5,38,7],[39,2,39,4],[39,5,39,7],[35,2,35,4],[33,2,33,4],[33,5,33,7],[34,2,34,4],[34,5,34,7],[16,2,16,4],[16,5,16,7],[17,2,17,4],[17,5,17,7],[18,2,18,4],[18,5,18,7],[19,2,19,4],[19,5,19,7],[20,2,20,4],[20,5,20,7],[178,1,183,10],[170,2,170,4],[170,5,170,7],[171,2,171,4],[171,5,171,7],[172,2,172,4],[172,5,172,7],[159,2,159,4],[159,5,159,7],[160,2,160,4],[160,5,160,7],[161,2,161,4],[161,5,161,7],[162,2,162,4],[162,5,162,7],[163,2,163,4],[163,5,163,7],[169,2,169,4],[169,5,169,7],[164,2,164,4],[164,5,164,7],[165,2,165,4],[165,5,165,7],[166,2,166,4],[173,2,173,4],[173,5,173,7],[177,1,177,10],[108,2,108,4],[108,5,108,7],[109,2,109,4],[109,5,109,7],[110,2,110,4],[110,5,110,7],[129,2,129,4],[129,5,129,7],[127,5,127,7],[128,2,128,4],[128,5,128,7],[123,2,123,4],[119,1,119,10],[130,2,130,4],[130,5,130,7],[131,2,131,4],[131,5,131,7],[122,2,122,4],[118,1,118,10],[120,2,120,4],[126,1,126,9],[1,0,3,0],[7,2,7,4],[7,5,7,7],[5,1,5,13],[22,2,22,4],[22,5,22,7],[1,1,3,3],[23,2,23,4],[23,5,23,7],[8,2,8,4],[8,5,8,7],[21,2,21,4],[21,5,21,7],[9,5,9,7],[10,2,10,4],[10,5,10,7],[9,2,9,4],[11,2,11,4],[11,5,11,7],[12,2,12,4],[12,5,12,7],[13,2,13,4],[13,5,13,7],[14,2,14,4],[46,5,46,7],[47,2,47,4],[47,5,47,7],[48,2,48,4],[48,5,48,7],[49,2,49,4],[49,5,49,7],[40,5,40,7],[41,2,41,4],[41,5,41,7],[45,2,45,4],[45,5,45,7],[46,2,46,4],[40,2,40,4],[42,2,42,4],[42,5,42,7],[43,2,43,4],[106,2,106,4],[106,5,106,7],[107,2,107,4],[107,5,107,7],[31,2,31,4],[31,5,31,7],[101,2,101,4],[101,5,101,7],[102,2,102,4],[102,5,102,7],[99,2,99,4],[60,5,60,7],[66,2,66,4],[66,5,66,7],[98,5,98,7],[75,2,75,4],[52,2,52,4],[52,5,52,7],[70,5,70,7],[71,2,71,4],[71,5,71,7],[72,2,72,4],[72,5,72,7],[61,2,61,4],[6,1,6,8],[6,9,6,13],[30,1,30,7],[30,8,30,11],[96,1,96,8],[96,9,96,13],[75,5,75,7],[76,2,76,4],[76,5,76,7],[95,1,95,13],[67,2,67,4],[67,5,67,7],[68,2,68,4],[68,5,68,7],[69,2,69,4],[69,5,69,7],[51,5,51,7],[25,1,25,10],[14,5,14,7],[15,2,15,4],[15,5,15,7],[53,2,53,4],[53,5,53,7],[57,1,57,14],[105,2,105,4],[105,5,105,7],[58,1,58,8],[103,2,103,4],[103,5,103,7],[104,2,104,4],[104,5,104,7],[99,5,99,7],[100,2,100,4],[100,5,100,7],[97,2,97,4],[97,5,97,7],[98,2,98,4],[73,2,73,4],[73,5,73,7],[74,2,74,4],[74,5,74,7],[59,2,59,4],[59,5,59,7],[60,2,60,4],[63,5,63,7],[64,2,64,4],[64,5,64,7],[65,2,65,4]]}
[]
[null,"3. Metodologías",null,null,null,"Contenido","Hoja Anterior","Hoja Siguiente"]
[]
[]
[]
[null,"a. Lista de metodologías"]
[null,"Registrar cada metodología empleada para la estimación de emisiones resultantes de las diversas actividades.\n1. Clave predeterminada para identificar la metodología para la estimación de emisiones de una fuente de emisión dada. No modificar esta celda.\n2: Indicar nombre de la metodología, seleccionando la metodología del Acuerdo metodológico del RENE. En caso de que se trate de una metodología distinta a la del Acuerdo seleccionar \"otra\". Por ejemplo, balance de materiales o medición directa, si fuese el caso.\n3. Describir la metodología aplicada haciendo referencia al proceso o actividad correspondiente y resaltando aspectos relavantes de su aplicación, si se considera necesario.\n4. Determinar si la fuente de información corresponde a la del Acuerdo metodológico del RENE o a otra.",null,null,null,null,null,null,null,"5. En caso de que se haya empleado una metodología diferente a la del RENE, indicar el o los motivos que originaron su aplicación.\n6. De acuerdo a la sección 2a \"Lista de actividades\", seleccionar de la lista despegable la actividad con la que corresponde la metodología que se registra.\n7. Unicamente se puede determinar al CO2 como GEI emitido directamente cubierto por el Programa de Prueba.\n8 -9. Seleccionar el o los GEI emitidos directamente en la fuente de emisión previamente declarada y asociada a la metodología.\nEstas celdas se llenarán de manera opcional correspondiendo a emisiones directas de gases no cubiertos por el Programa de Prueba, pero de actividades cubiertas por el Programa de Prueba."]
[null,"Metodología\n(1)","[nombre] (2)",null,null,"Breve descripción (3)",null,null,"Fuente de información\n(4)","Otra Fuente de información (motivo) \n(5)","Actividad asociada\n(6)","GEI Emitido Directamente\n(7)","GEI Emitido Directamente\n(8)","GEI Emitido Directamente\n(9)"]
[null,"M_ej1","III - Combustión de combustibles",null,null,"CO2 por combustión de gas natural",null,null,{"$f":"IF(C9=\"\",\"\",IF(C9=\"OTRA\", \"ESPECIFIQUE\", VLOOKUP('3.Metodologias'!C9,Catalogos!$B$101:$C$119,2)))","v":"RENE"},null,"A1","CO2","CH4","N2O"]
[null,"M_ej2","V - Producción de cemento",null,null,"CO2 por proceso industrial",null,null,{"$f":"IF(C10=\"\",\"\",IF(C10=\"OTRA\", \"ESPECIFIQUE\", VLOOKUP('3.Metodologias'!C10,Catalogos!$B$101:$C$119,2)))","v":"RENE"},null,"A2","CO2"]
[null,"M1",null,null,null,null,null,null,{"$f":"IF(C11=\"\",\"\",IF(C11=\"OTRA\", \"ESPECIFIQUE\", VLOOKUP('3.Metodologias'!C11,Catalogos!$B$101:$C$119,2)))","v":""}]
[null,"M2"]
[null,"M3",null,null,null,null,null,null,{"$f":"IF(C13=\"\",\"\",IF(C13=\"OTRA\", \"ESPECIFIQUE\", VLOOKUP('3.Metodologias'!C13,Catalogos!$B$101:$C$119,2)))","v":""}]
[null,"M4",null,null,null,null,null,null,{"$f":"IF(C14=\"\",\"\",IF(C14=\"OTRA\", \"ESPECIFIQUE\", VLOOKUP('3.Metodologias'!C14,Catalogos!$B$101:$C$119,2)))","v":""}]
[null,"M5",null,null,null,null,null,null,{"$f":"IF(C15=\"\",\"\",IF(C15=\"OTRA\", \"ESPECIFIQUE\", VLOOKUP('3.Metodologias'!C15,Catalogos!$B$101:$C$119,2)))","v":""}]
[null,"M6",null,null,null,null,null,null,{"$f":"IF(C16=\"\",\"\",IF(C16=\"OTRA\", \"ESPECIFIQUE\", VLOOKUP('3.Metodologias'!C16,Catalogos!$B$101:$C$119,2)))","v":""}]
[null,"M7",null,null,null,null,null,null,{"$f":"IF(C17=\"\",\"\",IF(C17=\"OTRA\", \"ESPECIFIQUE\", VLOOKUP('3.Metodologias'!C17,Catalogos!$B$101:$C$119,2)))","v":""}]
[null,"M8",null,null,null,null,null,null,{"$f":"IF(C18=\"\",\"\",IF(C18=\"OTRA\", \"ESPECIFIQUE\", VLOOKUP('3.Metodologias'!C18,Catalogos!$B$101:$C$119,2)))","v":""}]
[null,"M9",null,null,null,null,null,null,{"$f":"IF(C19=\"\",\"\",IF(C19=\"OTRA\", \"ESPECIFIQUE\", VLOOKUP('3.Metodologias'!C19,Catalogos!$B$101:$C$119,2)))","v":""}]
[null,"M10",null,null,null,null,null,null,{"$f":"IF(C20=\"\",\"\",IF(C20=\"OTRA\", \"ESPECIFIQUE\", VLOOKUP('3.Metodologias'!C20,Catalogos!$B$101:$C$119,2)))","v":""}]
[null,"M11",null,null,null,null,null,null,{"$f":"IF(C21=\"\",\"\",IF(C21=\"OTRA\", \"ESPECIFIQUE\", VLOOKUP('3.Metodologias'!C21,Catalogos!$B$101:$C$119,2)))","v":""}]
[null,"M12",null,null,null,null,null,null,{"$f":"IF(C22=\"\",\"\",IF(C22=\"OTRA\", \"ESPECIFIQUE\", VLOOKUP('3.Metodologias'!C22,Catalogos!$B$101:$C$119,2)))","v":""}]
[null,"M13",null,null,null,null,null,null,{"$f":"IF(C23=\"\",\"\",IF(C23=\"OTRA\", \"ESPECIFIQUE\", VLOOKUP('3.Metodologias'!C23,Catalogos!$B$101:$C$119,2)))","v":""}]
[null,"M14",null,null,null,null,null,null,{"$f":"IF(C24=\"\",\"\",IF(C24=\"OTRA\", \"ESPECIFIQUE\", VLOOKUP('3.Metodologias'!C24,Catalogos!$B$101:$C$119,2)))","v":""}]
[null,"M15",null,null,null,null,null,null,{"$f":"IF(C25=\"\",\"\",IF(C25=\"OTRA\", \"ESPECIFIQUE\", VLOOKUP('3.Metodologias'!C25,Catalogos!$B$101:$C$119,2)))","v":""}]
[null,"*Motivo - Si se utiliza otra metodología diferente al RENE o no aprobada, mencionar las razones."]
[]
[]
[]
[null,"b. Registro de datos de actividad"]
[null,"Enlistar en cada fila un dato de actividad que se asocie a una actividad generadora de GEI declarada en la sección 2a y a la metodología declarada en la sección 3a, de acuerdo a lo siguiente:\n1. Clave predeterminada para identificar el dato de actividad. No se debe modificar la celda.\n2. Indicar el  nombre del dato de actividad (ejemplo: \"consumo de combustible\").  \n3. Proporcionar una breve descrpción del dato de actividad. Se recomienda hacer referencia al proceso correspondiente o a alguna característica que sea necesario destacar.",null,null,null,null,null,null,"4. De la lista desplegable, seleccionar la actividad a la que se vincula el dato de actividad de acuerdo a la sección 2a.\n5. De la lista desplegable, seleccionar el equipo de medición registrado en sección 2d, si aplica.\n6. De la lista desplegable, seleccionar la metodología a la que se vincula el dato de actividad de acuerdo a la sección 3a.\n7. Definir el valor numérico del dato que corresponde con el dato de actividad establecido en el punto 1 (hasta dos decimales si se considera necesario).",null,null,null,"8. Determinar las unidades correspondientes al dato de actividad que se registra (ejemplo: m3, litros).\n9. Especificar la fuente de información relativa al dato de actividad que se registra.\n10. Especificar la frecuencia con la que se recopila el dato de actividad que se registra (ejemplo:diario, semanal, mensual, etc.).\n"]
[null,"Dato de actividad [1]","[nombre] (2)",null,null,"Breve descripción (3)",null,null,"Actividad Asociada\n(4)","Equipo de medición asociado (si aplica)\n(5)","Metodología Asociada\n(6)","Dato\n(7)","Unidad del dato\n(8)","Fuente de Informacion\n(9)","Frecuencia de Monitoreo\n(10)"]
[null,"D_ej1","Consumo de gas natural",null,null,"Proceso de combustión de GN ",null,null,"A1","EM_ej1","M_ej1",10500000,"m3","Facturas de compra","Diaria"]
[null,"D_ej2","Producción de cemento tipo A",null,null,"Toneladas de cemento A producidas en el año",null,null,"A2","EM_ej2","M_ej2",100000000,"ton","Informes de producción","Mensual"]
[null,"D1"]
[null,"D2"]
[null,"D3"]
[null,"D4"]
[null,"D5"]
[null,"D6"]
[null,"D7"]
[null,"D8"]
[null,"D9"]
[null,"D10"]
[null,"D11"]
[null,"D12"]
[null,"D13"]
[null,"D14"]
[null,"D15"]
[null,"D16"]
[null,"D17"]
[null,"D18"]
[null,"D19"]
[null,"D20"]
[]
[]
[]
[null,"c. Factores de Emisión"]
[null,"Registrar el o los factores de emisión que se involucren en la o las metodologías de cálculo de emisiones registradas en la sección 3a, especificando la actividad a la que se asocia, la fuente de información, así como el valor numérico del factor de emisión y sus unidades correspondientes.\n1. Clave predeterminada del factor de emisión. No se debe modificar la celda.\n2. Indicar el nombre del factor de emisión correspondiente. Ejemplo: tonleadas de CO2 por MW generado.\n3. Describir brevemente el factor de emisión si se considera necesario.\n4. De la lista desplegable, indicar la actividad a la que se asocia el factor de emisión, de acuerdo con a sección 2a.",null,null,null,null,null,null,null,"5. De la lista desplegable, seleccionar la metodología registrada en la sección 3a, con la que corresponde el factor de emisión.\n6. Indicar el valor del factor de emisión aplicado a la estimación de emisiones. Se pueden emplear los decimales necesarios.\n7. Indicar las unidades correspondientes al factor de emisión.\n8. Indicar si la fuente de información corresponde al RENE o a otra.\n9. En caso de que se haya empleado un factor de emisión diferente a los del RENE, indicar el o los motivos que originaron su aplicación.\n10. Indicar cualquier comentario adicional que se considere necesario aclarar en el rubro de factor de emisión."]
[null,"Factor de Emisión (1)","[nombre] (2)",null,null,"Breve descripción (3)",null,null,"Actividad Asociada \n(4)","Metodología Asociada \n(5)","Factor de emisión\n (6)","Unidad del factor de emisión \n(7)","Fuente de información\n(8)","Otra Fuente (motivo) \n(9)","Comentarios\n(10)"]
[null,"FE_ej1","FE de gas natural",null,null,"Estimación del CO2 por la generación de electricidad",null,null,"A1","M_ej_1",5.6100000000000002E-5,"t/MJ","RENE","n/a","GN promedio"]
[null,"FE_ej2","FE del clínker",null,null,"Estimación del CO2 por tonelada de clínker",null,null,"A2","M_ej_2",0.53600000000000003,"tCO2 / t clinker","RENE","n/a","n/a"]
[null,"FE1",null,null,null,null,null,null,null,null,null,null,{"$f":"IF(G63=\"\",\"\",IF(G63=\"OTRA\", \"ESPECIFIQUE\", VLOOKUP('3.Metodologias'!G63,Catalogos!$B$101:$C$119,2)))","v":""}]
[null,"FE2",null,null,null,null,null,null,null,null,null,null,{"$f":"IF(G64=\"\",\"\",IF(G64=\"OTRA\", \"ESPECIFIQUE\", VLOOKUP('3.Metodologias'!G64,Catalogos!$B$101:$C$119,2)))","v":""}]
[null,"FE3",null,null,null,null,null,null,null,null,null,null,{"$f":"IF(G65=\"\",\"\",IF(G65=\"OTRA\", \"ESPECIFIQUE\", VLOOKUP('3.Metodologias'!G65,Catalogos!$B$101:$C$119,2)))","v":""}]
[null,"FE4",null,null,null,null,null,null,null,null,null,null,{"$f":"IF(G66=\"\",\"\",IF(G66=\"OTRA\", \"ESPECIFIQUE\", VLOOKUP('3.Metodologias'!G66,Catalogos!$B$101:$C$119,2)))","v":""}]
[null,"FE5",null,null,null,null,null,null,null,null,null,null,{"$f":"IF(G67=\"\",\"\",IF(G67=\"OTRA\", \"ESPECIFIQUE\", VLOOKUP('3.Metodologias'!G67,Catalogos!$B$101:$C$119,2)))","v":""}]
[null,"FE6",null,null,null,null,null,null,null,null,null,null,{"$f":"IF(G68=\"\",\"\",IF(G68=\"OTRA\", \"ESPECIFIQUE\", VLOOKUP('3.Metodologias'!G68,Catalogos!$B$101:$C$119,2)))","v":""}]
[null,"FE7",null,null,null,null,null,null,null,null,null,null,{"$f":"IF(G69=\"\",\"\",IF(G69=\"OTRA\", \"ESPECIFIQUE\", VLOOKUP('3.Metodologias'!G69,Catalogos!$B$101:$C$119,2)))","v":""}]
[null,"FE8",null,null,null,null,null,null,null,null,null,null,{"$f":"IF(G70=\"\",\"\",IF(G70=\"OTRA\", \"ESPECIFIQUE\", VLOOKUP('3.Metodologias'!G70,Catalogos!$B$101:$C$119,2)))","v":""}]
[null,"FE9",null,null,null,null,null,null,null,null,null,null,{"$f":"IF(G71=\"\",\"\",IF(G71=\"OTRA\", \"ESPECIFIQUE\", VLOOKUP('3.Metodologias'!G71,Catalogos!$B$101:$C$119,2)))","v":""}]
[null,"FE10",null,null,null,null,null,null,null,null,null,null,{"$f":"IF(G72=\"\",\"\",IF(G72=\"OTRA\", \"ESPECIFIQUE\", VLOOKUP('3.Metodologias'!G72,Catalogos!$B$101:$C$119,2)))","v":""}]
[null,"FE11",null,null,null,null,null,null,null,null,null,null,{"$f":"IF(G73=\"\",\"\",IF(G73=\"OTRA\", \"ESPECIFIQUE\", VLOOKUP('3.Metodologias'!G73,Catalogos!$B$101:$C$119,2)))","v":""}]
[null,"FE12",null,null,null,null,null,null,null,null,null,null,{"$f":"IF(G74=\"\",\"\",IF(G74=\"OTRA\", \"ESPECIFIQUE\", VLOOKUP('3.Metodologias'!G74,Catalogos!$B$101:$C$119,2)))","v":""}]
[null,"FE13",null,null,null,null,null,null,null,null,null,null,{"$f":"IF(G75=\"\",\"\",IF(G75=\"OTRA\", \"ESPECIFIQUE\", VLOOKUP('3.Metodologias'!G75,Catalogos!$B$101:$C$119,2)))","v":""}]
[null,"FE14",null,null,null,null,null,null,null,null,null,null,{"$f":"IF(G76=\"\",\"\",IF(G76=\"OTRA\", \"ESPECIFIQUE\", VLOOKUP('3.Metodologias'!G76,Catalogos!$B$101:$C$119,2)))","v":""}]
[null,"FE15",null,null,null,null,null,null,null,null,null,null,{"$f":"IF(G77=\"\",\"\",IF(G77=\"OTRA\", \"ESPECIFIQUE\", VLOOKUP('3.Metodologias'!G77,Catalogos!$B$101:$C$119,2)))","v":""}]
[null,"FE16",null,null,null,null,null,null,null,null,null,null,{"$f":"IF(G78=\"\",\"\",IF(G78=\"OTRA\", \"ESPECIFIQUE\", VLOOKUP('3.Metodologias'!G78,Catalogos!$B$101:$C$119,2)))","v":""}]
[null,"FE17",null,null,null,null,null,null,null,null,null,null,{"$f":"IF(G79=\"\",\"\",IF(G79=\"OTRA\", \"ESPECIFIQUE\", VLOOKUP('3.Metodologias'!G79,Catalogos!$B$101:$C$119,2)))","v":""}]
[null,"FE18",null,null,null,null,null,null,null,null,null,null,{"$f":"IF(G80=\"\",\"\",IF(G80=\"OTRA\", \"ESPECIFIQUE\", VLOOKUP('3.Metodologias'!G80,Catalogos!$B$101:$C$119,2)))","v":""}]
[null,"FE19",null,null,null,null,null,null,null,null,null,null,{"$f":"IF(G81=\"\",\"\",IF(G81=\"OTRA\", \"ESPECIFIQUE\", VLOOKUP('3.Metodologias'!G81,Catalogos!$B$101:$C$119,2)))","v":""}]
[null,"FE20",null,null,null,null,null,null,null,null,null,null,{"$f":"IF(G82=\"\",\"\",IF(G82=\"OTRA\", \"ESPECIFIQUE\", VLOOKUP('3.Metodologias'!G82,Catalogos!$B$101:$C$119,2)))","v":""}]
[null,"FE21",null,null,null,null,null,null,null,null,null,null,{"$f":"IF(G83=\"\",\"\",IF(G83=\"OTRA\", \"ESPECIFIQUE\", VLOOKUP('3.Metodologias'!G83,Catalogos!$B$101:$C$119,2)))","v":""}]
[null,"FE22",null,null,null,null,null,null,null,null,null,null,{"$f":"IF(G84=\"\",\"\",IF(G84=\"OTRA\", \"ESPECIFIQUE\", VLOOKUP('3.Metodologias'!G84,Catalogos!$B$101:$C$119,2)))","v":""}]
[null,"FE23",null,null,null,null,null,null,null,null,null,null,{"$f":"IF(G85=\"\",\"\",IF(G85=\"OTRA\", \"ESPECIFIQUE\", VLOOKUP('3.Metodologias'!G85,Catalogos!$B$101:$C$119,2)))","v":""}]
[null,"FE24",null,null,null,null,null,null,null,null,null,null,{"$f":"IF(G86=\"\",\"\",IF(G86=\"OTRA\", \"ESPECIFIQUE\", VLOOKUP('3.Metodologias'!G86,Catalogos!$B$101:$C$119,2)))","v":""}]
[null,"FE25",null,null,null,null,null,null,null,null,null,null,{"$f":"IF(G87=\"\",\"\",IF(G87=\"OTRA\", \"ESPECIFIQUE\", VLOOKUP('3.Metodologias'!G87,Catalogos!$B$101:$C$119,2)))","v":""}]
[null,"FE26",null,null,null,null,null,null,null,null,null,null,{"$f":"IF(G88=\"\",\"\",IF(G88=\"OTRA\", \"ESPECIFIQUE\", VLOOKUP('3.Metodologias'!G88,Catalogos!$B$101:$C$119,2)))","v":""}]
[null,"FE27",null,null,null,null,null,null,null,null,null,null,{"$f":"IF(G89=\"\",\"\",IF(G89=\"OTRA\", \"ESPECIFIQUE\", VLOOKUP('3.Metodologias'!G89,Catalogos!$B$101:$C$119,2)))","v":""}]
[null,"FE28",null,null,null,null,null,null,null,null,null,null,{"$f":"IF(G90=\"\",\"\",IF(G90=\"OTRA\", \"ESPECIFIQUE\", VLOOKUP('3.Metodologias'!G90,Catalogos!$B$101:$C$119,2)))","v":""}]
[null,"FE29",null,null,null,null,null,null,null,null,null,null,{"$f":"IF(G91=\"\",\"\",IF(G91=\"OTRA\", \"ESPECIFIQUE\", VLOOKUP('3.Metodologias'!G91,Catalogos!$B$101:$C$119,2)))","v":""}]
[null,"FE30",null,null,null,null,null,null,null,null,null,null,{"$f":"IF(G92=\"\",\"\",IF(G92=\"OTRA\", \"ESPECIFIQUE\", VLOOKUP('3.Metodologias'!G92,Catalogos!$B$101:$C$119,2)))","v":""}]
[]
[]
[]
[null,"d. Poderes caloríficos"]
[null,"Indicar los poderes calororíficos de los combustibles involucrados y la información que se asocia. Un poder calorífico en cada fila por cada combustible que se emplee en el establecimiento y genere emisiones de GEI cubiertas por el Programa de Prueba.\n1. Clave predeterminada para identificar el poder calorífico del combustible a registrar. No se debe modificar la celda.\n2. Señalar el nombre del combustible al cual corresponde el poder calorífico.\n3. Proporcionar una descripción simple sobre el proceso al que corresponde.\n4. Indicar la actividad asociada de acuerdo a la sección 2a.",null,null,null,null,null,null,null,"5. Indicar la metodología asociada de acuerdo a la sección 3a.\n6. Especificar el valor numérico del poder calorífico.\n7. Especificar la unidad correspondiente con el valor establecido en (6).\n8. Especificar la fuente de información, si corresponde al listado de la CONUEE o a un valor medido en la fuente.\n9. Proporcionar aclaraciones en caso de que se considere que se requiere incluir algun comentario adicional alusivo al poder calorífico empleado."]
[null,"Poder Calorífico (1)","Combustible asociado (2)",null,null,"Breve descripción (3)",null,null,"Actividad Asociada (4)","Metodología Asociada (5)","Poder Calorífico (6)","Unidad del poder calorífico (7)","Fuente de información (8)","Comentarios\n(9)"]
[null,"PC_ej1","Gas natural",null,null,"Turbina 2",null,null,"A1","M_ej1",41338,"kJ/m3","Listado CONUEE","GN promedio"]
[null,"PC_ej2","Carbón mineral",null,null,"Caldera A1",null,null,"A2","M_ej2",22543,"MJ/t","Listado CONUEE","Carbón térmico de importación"]
[null,"PC1"]
[null,"PC2"]
[null,"PC3"]
[null,"PC4"]
[null,"PC5"]
[null,"PC6"]
[null,"PC7"]
[null,"PC8"]
[null,"PC9"]
[null,"PC10"]
[null,"PC11"]
[null,"PC12"]
[null,"PC13"]
[null,"PC14"]
[null,"PC15"]
[]
[]
[]
[null,"e. Potenciales de Calentamiento Global"]
[null,"A continuación se muestran los Potenciales de Calentamiento Global que se emplean de conformidad con el \"Acuerdo por el que se establecen los gases de efecto invernadero que se agrupan para efectos de reporte y sus potenciales de calentamiento global\", que se deben emplear para realizar las estimaciones de CO2 equivalente."]
[null,"Gas","Potencial de Calentamiento"]
[null,"CO2",1]
[null,"CH4",28]
[null,"N2O",265]
[]
[null,"f. Balance de Materiales"]
[null,"Cuando aplique, indicar los datos de actividad involucrados en el balance de materia aplicado y vincularlos a la actividad establecida en la sección 2a.\n1. Ocupar una fila por cada balance de materia que se aplique para la estimación de emisiones de una actividad. No modificar la celda que corresponde a la clave predeterminada del balance de materia aplicado a una actividad generadora de GEI.\n2. Describir de manera general a qué se aplica el balance de materia. Por ejemplo: emisiones de HFC's por consumo de refrigerantes.\n3. De la lista desplegable, seleccionar la actividad a la que se vincula el balance de materia, de acuerdo a lo registrado en la sección 2a.\n",null,null,null,null,null,null,null,null,"Dato de actividad 1 - 8: Se podrán seleccionar  hasta 8 datos de actividad involucrados en una ecuación de balance de materia, de acuerdo a los datos de actividad registrados en la sección 3b.\nDato de actividad 1 a 4 \"ENTRADA\": Corresponde a flujos de entrada dentro de un balance de materia. Son datos que debieron ser registrados en la sección 3b \"Datos de actividad\".\nDato de actividad 1 a 4 \"SALIDA\": Corresponde a flujos de salida dentro de un balance de materia. Son datos que debieron ser registrados en la sección 3b \"Datos de actvidad\""]
[null,"Balance de Materia\n(1)","Breve descripción (2)",null,null,"Actividad Asociada (3)",null,null,"Dato de Actividad Asociado 1\nENTRADA","Dato de Actividad Asociado 2\nENTRADA","Dato de Actividad Asociado 3\nENTRADA","Dato de Actividad Asociado 4\nENTRADA","Dato de Actividad Asociado 1\nSALIDA","Dato de Actividad Asociado 2\nSALIDA","Dato de Actividad Asociado 3\nSALIDA","Dato de Actividad Asociado 4\nSALIDA"]
[null,"BM_ej1"]
[null,"BM_ej2"]
[null,"BM1"]
[null,"BM2"]
[null,"BM3"]
[null,"BM4"]
[null,"BM5"]
[null,"BM6"]
[null,"BM7"]
[null,"BM8"]
[null,"BM9"]
[null,"BM10"]
[null,"BM11"]
[null,"BM12"]
[null,"BM13"]
[null,"BM14"]
[null,"BM15"]
[]
[]
[]
[null,"Descripción de BM1"]
[null,"En caso de que en algún(os) proceso(s) o para fuente(s) de emisión específicas, se determine realizar la estimación de emisiones por balance de materia, se deberá describir la metodología empleada y el origen de la información."]
[]
[]
[]
[]
[null,"g. Medición Directa (si aplica)"]
[null,"Cuando se emplee la medición directa como método de estimación de emisiones, se deberá llenar esta sección.\n1. Ocupar una fila por cada ocasión que se aplique la medición directa para la estimación de emisiones de una actividad específica.\n2. Describir brevemente la actividad o proceso al que se aplica el método de medición directa.\n3. De la lista desplegable, seleccionar el equipo de medición que corresponda de acuerdo a lo registrado en la sección 2e.\n4. De la lista desplegable, seleccionar el punto de emisión que corresponda de acuerdo a lo registrado en la sección 2d.\n5. Solo seleccionar el CO2 si el equipo lo mide directamente (CEMS). Para los Participantes es obligatorio registrar en esta sección las veces que se haya aplicado el método de medición directa en fuentes fijas / procesos industriales que hayan emitido CO2."]
[null,"Medición Directa (1)","Breve descripción (2)",null,null,"Equipo de Medición Asociado (3)",null,null,"Punto de Emisión Asociado (4)","GEI Medido o Asociado (5)"]
[null,"MD_ej1"]
[null,"MD_ej2"]
[null,"MD1"]
[null,"MD2"]
[null,"MD3"]
[null,"MD4"]
[null,"MD5"]
[null,"MD6"]
[null,"MD7"]
[null,"MD8"]
[null,"MD9"]
[null,"MD10"]
[null,"MD11"]
[null,"MD12"]
[null,"MD13"]
[null,"MD14"]
[null,"MD15"]
[]
[]
[]
[null,"Descripción de MD1"]
[null,"En caso de que en algún(os) proceso(s) o para fuente(s) de emisión específicas, se aplique medición directa, se deberá describir a detalle el uso de CEMS además de la siguiente información.\n- Aseguramiento de calidad\n- Determinación de la incertidumbre total del flujo de masa de GEI\n- Monitoreo continuo \n"]

{"sheet":"4.Procedimientos","index":5,"n_rows":54,"n_cols":13,"rows_kept":54,"cut":false,"hidden":false,"merged":[[32,8,32,13],[32,1,32,7],[50,11,50,13],[50,8,50,10],[49,2,49,4],[49,5,49,7],[49,8,49,10],[49,11,49,13],[18,2,18,3],[18,4,18,5],[18,6,18,7],[18,8,18,9],[20,2,20,3],[20,4,20,5],[20,6,20,7],[20,8,20,9],[25,2,25,3],[25,4,25,5],[25,6,25,7],[25,8,25,9],[26,2,26,3],[26,4,26,5],[26,6,26,7],[34,2,34,4],[34,5,34,7],[34,8,34,10],[1,1,3,3],[48,2,48,4],[48,5,48,7],[48,8,48,10],[48,11,48,13],[38,8,38,10],[38,11,38,13],[36,2,36,4],[36,5,36,7],[36,8,36,10],[36,11,36,13],[37,2,37,4],[37,5,37,7],[37,8,37,10],[37,11,37,13],[14,8,14,9],[15,2,15,3],[15,4,15,5],[15,6,15,7],[15,8,15,9],[33,8,33,10],[26,8,26,9],[27,2,27,3],[27,4,27,5],[27,6,27,7],[27,8,27,9],[5,1,5,12],[31,1,31,13],[35,11,35,13],[16,6,16,7],[11,4,11,5],[17,2,17,3],[17,4,17,5],[17,6,17,7],[13,6,13,7],[14,2,14,3],[14,4,14,5],[14,6,14,7],[17,8,17,9],[13,8,13,9],[34,11,34,13],[35,2,35,4],[35,5,35,7],[35,8,35,10],[6,1,6,7],[6,8,6,12],[51,11,51,13],[52,2,52,4],[52,5,52,7],[52,8,52,10],[52,11,52,13],[53,2,53,4],[53,5,53,7],[53,8,53,10],[53,11,53,13],[51,8,51,10],[45,11,45,13],[46,2,46,4],[46,5,46,7],[46,8,46,10],[46,11,46,13],[47,2,47,4],[47,5,47,7],[47,8,47,10],[47,11,47,13],[45,8,45,10],[44,8,44,10],[44,11,44,13],[39,2,39,4],[39,5,39,7],[39,8,39,10],[39,11,39,13],[43,2,43,4],[43,5,43,7],[21,2,21,3],[21,4,21,5],[21,6,21,7],[21,8,21,9],[24,2,24,3],[24,4,24,5],[24,6,24,7],[24,8,24,9],[22,2,22,3],[22,4,22,5],[22,6,22,7],[22,8,22,9],[23,2,23,3],[23,4,23,5],[23,6,23,7],[23,8,23,9],[1,0,3,0],[40,2,40,4],[40,5,40,7],[33,2,33,4],[33,5,33,7],[13,2,13,3],[13,4,13,5],[8,6,8,7],[19,2,19,3],[19,4,19,5],[19,6,19,7],[8,2,8,3],[8,4,8,5],[12,2,12,3],[7,4,7,5],[9,4,9,5],[10,4,10,5],[16,4,16,5],[12,4,12,5],[7,2,7,3],[9,2,9,3],[10,2,10,3],[16,2,16,3],[11,2,11,3],[41,2,41,4],[41,5,41,7],[42,2,42,4],[42,5,42,7],[45,2,45,4],[45,5,45,7],[51,2,51,4],[51,5,51,7],[44,2,44,4],[44,5,44,7],[50,2,50,4],[50,5,50,7],[38,2,38,4],[38,5,38,7],[7,6,7,7],[9,6,9,7],[10,6,10,7],[11,6,11,7],[12,6,12,7],[43,11,43,13],[40,8,40,10],[41,8,41,10],[42,8,42,10],[43,8,43,10],[33,11,33,13],[40,11,40,13],[41,11,41,13],[42,11,42,13],[12,8,12,9],[7,8,7,9],[8,8,8,9],[9,8,9,9],[10,8,10,9],[11,8,11,9],[19,8,19,9],[16,8,16,9]]}
[]
[null,"4. Procedimientos",null,null,null,"Contenido","Hoja Anterior","Hoja Siguiente"]
[]
[]
[]
[null,"a. Registro de Procedimientos"]
[null,"Registrar los procedimientos que se llevan a cabo dentro del establecimiento para la recopilación y manejo de la información asociada a GEI. Estos procedimientos son el conjunto de acciones que se realizan para obtener cada dato de actividad requerido para la estimación de emisiones. Aunque no existan procedimientos documentados internamente o dentro de un sistema de gestión, se solicita que el Participante describa breve y claramente la manera en que se obtiene y maneja la información de GEI dentro del establecimiento, incluyendo controles de calidad implementados. Ver ejemplos.\n1. Clave predeterminada para identificar el procedimiento. \n2. Indicar la actividad a la que se vincula el procedimiento, de acuerdo al listado registrado en la sección 2a.\n3. Indicar el dato de actividad que se monitorea mediante el procedimiento correspondiente.\n\n",null,null,null,null,null,null,"4. Indicar la variable con la cual se asocia, en referencia principalmente a las emisiones de GEI. No obstante, puede haber otras variables monitoreadas relacionadas con las emisiones de manera indirecta, como por ejemplo, el poder calorífico de un combustible cuando se mide en la fuente.\n5. Proporcionar una breve descripción del procedimiento correspondiente.\n6. Indicar la frecuencia con que se monitorea ese dato de actividad o variable: tres veces al día, diaria, semanal, mensual, bimestral, ectétera.\n7. Indicar la ubicación física de los registros, es decir, señalar el lugar, sitio u oficina en donde se resguarda la información relativa.\n8. Indicar los controles de calidad empleados para garantizar la calidad de la información que se obtiene: supervisión, inspecciones, revisiones, capacitaciones, etcétera."]
[null,"Procedimiento (1)","Actividad asociada (2)",null,"Dato de actividad (3)",null,"Variable asociada (4)",null,"Breve descripción del procedimiento (5)",null,"Frecuencia de Monitoreo (6)","Ubicación de los registros (7)","Controles de Calidad (8)"]
[null,"PR_ej1","A1",null,"Consumo de combustible en m3",null,"Emisiones directas de CO2",null,"Se registra la cantidad de combustóleo del medidor del tanque a las 7 hr (m1) y a las 17 hr (m2) y se resta (m2 – m1). Se registra en bitácora y se captura en sistema informático.",null,"Diaria","Edificio de operaciones","Inspecciones rutinarias"]
[null,"PR_ej2","A2",null,"Consumo de gas L.P,",null,"Emisiones directas de CO2",null," En un sistema informático interno con base en ORACLE, se captura los registros de las facturas de compra del proveedor.",null,"Semanal ","Oficina del área de constraloría","Auditoria interna mensual"]
[null,"PR_ej3","A3",null,"Consumo de coque de petróleo",null,"Emisiones directas de CO2",null,"En una base de datos de Excel se vacía la información de las facturas del proveedor del coque.",null,"Mensual","Gerencia de compras","Cotejo con informes de operación y producción"]
[null,"PR_ej4","A4",null,"Composición del gas",null,"Poder calorifico ",null,"Con el cromatógrafo se obtiene el análisis de composición del gas, con el que se obtiene el poder calorífico.",null,"Semanal ","Laboratorio","Informes mensuales de laboratorio. Programa de capacitación anual a los técnicos analistas. Programa de calibración de acuerdo a especificaciones de equipos"]
[null,"PR_ej5","A5",null,"Uso de refrigerante R-134A",null,"Emisiones directas de CO2",null,"Resguardo de órdenes de mantenimiento",null,"Mensual","Departamento de Seguridad e Higiene.","Auditorías internas semestrales. Cotejo con informes del proveedor."]
[null,"PR1"]
[null,"PR2"]
[null,"PR3"]
[null,"PR4"]
[null,"PR5"]
[null,"PR6"]
[null,"PR7"]
[null,"PR8"]
[null,"PR9"]
[null,"PR10"]
[null,"PR11"]
[null,"PR12"]
[null,"PR13"]
[null,"PR14"]
[null,"PR15"]
[]
[]
[]
[null,"b. Detalle de Procedimientos"]
[null,"Proporcionar con mayor detalle en qué consisten los procedimientos registrados en la sección 4a. Se recomienda ver los ejemplo disponibles.\n1. Clave predeterminada del procedimiento registrado en la sección 4a.\n2. Indicar el nombre del procedimiento correspondiente.\n",null,null,null,null,null,null,"3. Si se considera necesario, proporcionar mayor detalle a lo descrito en la columna (5) de la sección 4a.\n4. Indicar el cargo que ocupa y área dentro del establecimiento, la persona responsable de ejecutar el procedimiento.\n5. Indicar las responsabilidades que la persona ( indicado en la columna 4) posee relativas al procedimiento correspondiente."]
[null,"Procedimiento (1)","[nombre] (2)",null,null,"Descripción (3)",null,null,"Área / Persona responsable de la implementación del procedimiento (4)",null,null,"Responsabilidades en el procedimiento (5)"]
[null,"PR_ej1","Registro de consumo de combustible",null,null,"Se registra la cantidad de combustóleo del medidor del tanque a las 7 hr y una segunda medición a las 18 hr y se resta. Se registra en bitácora y se captura en sistema informático.",null,null,"Asistente operativo de la Gerencia de Medio Ambiente",null,null,"Lectura y registro del medidor del tanque de combustóleo a las 7 hr. Un segundo asistente registra la toma de las 17 hr. Captura diaria de información en el sistema electrónico. Realiza la resta entre la segunda y la primera medición dentro del sistema electrónico."]
[null,"PR_ej2","Registro de consumo de combustible",null,null,"En un sistema informático interno con base en ORACLE, se captura los registros de las facturas de compra del proveedor del gas L.P. Se registra fecha y consumo en m3 de manera semanal, ya que corresponde a la frecuencia con que se adquiere el gas.",null,null,"Superintendente de mantenimiento",null,null," Recopilación de las facturas de compra del gas L.P. con el área de finanzas. Registro de las facturas en el sistema informático interno semanalmente.\nEncargado del mantenimiento del sistema informático."]
[null,"PR_ej3","Registro de compra de combustible.",null,null,"En una base de datos interna (eccel) se vacía la información de las facturas del proveedor: folio, fecha y hora en que se provee el combustible, responsable de la recepción, m3 del combustible, costo facturado por m3 y costo total.",null,null,"Coordinación de operaciones de la Gerencia de Desarrollo Sustentable",null,null,"Recopilación de las facturas del coque de petróleo (calcinación). Responsable de la captura de información en la base de datos interna de manera mensual. Responsable de cotejar las compras de combustible con los informes diarios de operación."]
[null,"PR_ej4","Medición del poder calorífico del gas",null,null,"De acuerdo a las especificaciones técnicas del cromatógrafo mod. G654 se realizan los análisis correspondientes para obtener el poder calorífico del gas.",null,null,"Coordinador de análisis y pruebas de laboratorio.",null,null," Realizar las muestras y análisis requeridos para la obtención del poder calorífico del gas natural que se emplea en los procesos del establecimiento. Responsable de la calibración del cromatrógrafo y de los resultados de los análisis. Reporta mensualmente."]
[null,"PR_ej5","Resguardo de órdenes de mantenimiento de equipos de enfriamiento",null,null,"Cuando se recargan los equipos, el proveedor entrega la orden al personal del área operativa que se encuentre al mando. Posteriormente, se resguardan esas ordenes de mantenimiento en una carpeta identificada como “Ordenes de Mantenimiento”. La información se resguarda en un almacén con acceso restringido y solo puede ser consultada a solicitud",null,null,"Jefe de Seguridad y Medio Ambiente",null,null,"Responsable del resguardo de las órdenes de mantenimiento de equipos de refrigeración y aire acondicionado"]
[null,"PR1"]
[null,"PR2"]
[null,"PR3"]
[null,"PR4"]
[null,"PR5"]
[null,"PR6"]
[null,"PR7"]
[null,"PR8"]
[null,"PR9"]
[null,"PR10"]
[null,"PR11"]
[null,"PR12"]
[null,"PR13"]
[null,"PR14"]
[null,"PR15"]

{"sheet":"5.Riesgos","index":6,"n_rows":123,"n_cols":15,"rows_kept":123,"cut":false,"hidden":false,"merged":[[58,1,58,13],[10,14,10,19],[39,14,39,19],[6,1,6,9],[6,10,6,19],[34,1,34,9],[15,2,15,7],[15,8,15,13],[15,14,15,19],[37,2,37,7],[37,8,37,13],[12,2,12,7],[12,8,12,13],[12,14,12,19],[13,2,13,7],[13,8,13,13],[13,14,13,19],[14,2,14,7],[14,8,14,13],[14,14,14,19],[9,2,9,7],[9,8,9,13],[9,14,9,19],[10,2,10,7],[41,2,41,7],[41,8,41,13],[10,8,10,13],[11,14,11,19],[69,1,82,13],[85,1,98,13],[105,1,118,13],[84,1,84,13],[52,2,52,7],[52,8,52,13],[53,2,53,7],[53,8,53,13],[54,2,54,7],[54,8,54,13],[60,1,60,13],[55,2,55,7],[55,8,55,13],[61,1,68,13],[101,1,104,13],[47,2,47,7],[47,8,47,13],[48,2,48,7],[48,8,48,13],[49,8,49,13],[50,2,50,7],[50,8,50,13],[51,2,51,7],[51,8,51,13],[42,2,42,7],[42,8,42,13],[43,2,43,7],[43,8,43,13],[44,2,44,7],[44,8,44,13],[45,2,45,7],[45,8,45,13],[46,2,46,7],[46,8,46,13],[49,2,49,7],[28,2,28,7],[29,2,29,7],[31,1,31,10],[30,2,30,7],[36,2,36,7],[36,8,36,13],[29,8,29,13],[30,8,30,13],[40,2,40,7],[40,8,40,13],[39,2,39,7],[39,8,39,13],[38,8,38,13],[38,2,38,7],[34,10,34,19],[1,0,3,0],[5,1,5,10],[7,2,7,7],[8,2,8,7],[27,2,27,7],[7,8,7,13],[1,1,3,3],[16,2,16,7],[16,8,16,13],[20,2,20,7],[20,8,20,13],[23,8,23,13],[11,2,11,7],[11,8,11,13],[24,2,24,7],[24,8,24,13],[25,2,25,7],[25,8,25,13],[26,2,26,7],[26,8,26,13],[16,14,16,19],[17,2,17,7],[17,8,17,13],[17,14,17,19],[18,2,18,7],[18,8,18,13],[18,14,18,19],[19,2,19,7],[19,8,19,13],[19,14,19,19],[20,14,20,19],[21,2,21,7],[122,1,122,13],[100,1,100,13],[123,1,136,13],[120,1,120,13],[7,14,7,19],[8,14,8,19],[27,14,27,19],[28,14,28,19],[8,8,8,13],[27,8,27,13],[28,8,28,13],[29,14,29,19],[30,14,30,19],[33,1,33,10],[35,2,35,7],[35,8,35,13],[21,8,21,13],[21,14,21,19],[22,2,22,7],[22,8,22,13],[22,14,22,19],[23,2,23,7],[23,14,23,19],[49,14,49,19],[50,14,50,19],[51,14,51,19],[52,14,52,19],[53,14,53,19],[54,14,54,19],[55,14,55,19],[40,14,40,19],[41,14,41,19],[42,14,42,19],[43,14,43,19],[44,14,44,19],[45,14,45,19],[46,14,46,19],[47,14,47,19],[48,14,48,19],[24,14,24,19],[25,14,25,19],[26,14,26,19],[35,14,35,19],[36,14,36,19],[37,14,37,19],[38,14,38,19]]}
[]
[null,"5. Registro de Riesgos",null,null,null,"Contenido","Hoja Anterior","Hoja Siguiente"]
[]
[]
[]
[null,"a. Riesgos Inherentes"]
[null,"En la siguiente tabla, describir los riesgos inhenrentes identificados de acuerdo a las variables que se monitorean. Se refiere a los riesgos de cometer errores u omisiones que existen por la recopilación y el manejo de información al interior del establecimiento. El llenado de esta sección es OPCIONAL, no obstante, inducirá al Particpante a mejorar los controles de calidad que aseguren la certidumbre de la información generada, y por lo tanto, la certidumbre del reporte de emisiones.\n1. Clave predeterminada del riesgo inherente que se identifica por la recopilación y manejo de la información de GEI.\n2. Describir el riesgo que se identifica por la recopilación y manejo de información de GEI. Responder a la preguta indicada como manera de inducir el llenado de dicha celda (¿en qué puntos del sistema de control podrían producirse o se producen errores o desviaciones al Plan de Monitoreo?). Ver ejemplos.",null,null,null,null,null,null,null,null,"3. Establecer si el riesgo es alto, medio o bajo en función del impacto que tienen sobre las emisiones de GEI estimadas. Es decir, si se comete un error o una desviación derivado del riesgo inherente identificado, ¿qué tanto impacta sobre las emisiones totales estimadas?. Si puede afectar una gran cantidad de emisiones (ocasionar subestimación o sobreestimación), entonces se puede considerar un riesgo alto. \n4. Indicar las medidas implementadas que contribuyen a mitigar o reducir el riesgo portencial o real. En caso de no contar con medidas implementadas, también se debe indicar.\nSe recomienda mencionar incluso los riesgos considerados \"bajos\" así como las medidas de mitigación y control que contribuyen a que el riesgo sea bajo, ya que proporcionará a la autoridad conocimiento del manejo de información que se realiza en el establecimiento y que incide en la calidad de la información y del reporte."]
[null,"Riesgo Inherente (1)","Descripción del riesgo identificado (potencial o real).\n¿En qué puntos del sistema de control de emisiones podrían producirse o se producen errores o desviaciones del plan de monitoreo (teniendo en cuenta todos los pasos de recopilación, procesamiento y gestión de datos)?  (2)",null,null,null,null,null,"Resultados de la evaluación de riesgos\n¿Qué tan probables y graves son los riesgos identificados, en relación con el volumen de emisiones anuales?\n(alto, medio, bajo) (3)",null,null,null,null,null,"Medidas de mitigación y/o control\n¿Qué medidas de mitigación y/o control se han implementado para minimizar los riesgos inherentes? (4)"]
[null,"RI_ej1","Registro manual de datos en el consumo de combustible del tanque de combustóleo.",null,null,null,null,null,"Los registros que se toman manualmente inciden en el 65% de las emisiones de GEI totales. Por lo que su relevancia es alta (riesgo alto).",null,null,null,null,null,"Se realizan inspecciones rutinarias."]
[null,"RI_ej2","Interpretación errónea de la metodología para el cálculo de emisiones de CO2e por la producción de plomo. Riesgo de que el encargado del reporte determine erróneamente el factor de emisión que debe aplicarse.",null,null,null,null,null,"Se identifica alto riesgo ya que estas emisiones representan aproximadamente 50% de las emisiones totales.",null,null,null,null,null,"En la medida de lo posible, se evita la rotación al personal, pero se requiere establecer un programa de capacitación a los involcrados en el reporte de GEI."]
[null,"RI_ej3","Riesgo de que el personal no cuente con los conocimientos necesarios en inventarios de emisiones.",null,null,null,null,null,"Es altamente probable, dado que no se cuenta con un programa de capacitación implementado y existe constante rotación del personal.",null,null,null,null,null,"No se cuenta con medidas."]
[null,"RI_ej4","Se tienen fuentes con gran cantidad de datos que representan la mayor parte de las emisiones",null,null,null,null,null,"Alto riesgo por que el 90% de las emisiones se aloja en dos fuentes que implican 3500 datos anuales.",null,null,null,null,null,"Se cuenta con un sistema informático para la captura y manejo de información y se realizan auditorías mensuales para detectar errores, de las cuales se desprenden planes de acción para la mejora continua. Estas auditorías son supervisadas por la Dirección General."]
[null,"RI_ej5","Se cuenta con con varias y dispersas fuentes de información bajo la responsabilidad de diferentes áreas dentro del establecimiento",null,null,null,null,null,"Se considera un Alto riesgo debido a que el 100% de la información se encuentra descentralizada.",null,null,null,null,null,"Se realizan auditorías internas 4 veces al año, para revisar de manera exhaustiva la información."]
[null,"RI_ej6","Errores de captura manual en sistemas electrónicos",null,null,null,null,null,"Se considera que es un riesgo Moderado ya que la información que se captura manualmente en el sistema electrónico incide en 20% de las emisiones.",null,null,null,null,null,"Inspecciones rutinarias."]
[null,"RI_ej7","Exclusión de fuentes",null,null,null,null,null,"Se considera un Bajo riesgo ya que se cuenta con el personal capacitado en inventarios de GEI y un sistema de información centralizado.",null,null,null,null,null,"El personal responsable del inventario cuenta con la experiencia y conocimientos necesarios, cumple con el perfil requerido de acuerdo a las políticas de la empresa. Se cuenta con un sistema de gestión de informacion centralizado que permite identificar las fuentes de emisión."]
[null,"RI_ej8","No aplicar métodos de sustitución de datos faltantes cuando se tiene una laguna de información.",null,null,null,null,null,"Existe el riesgo potencial de que pueda extraviarse la información o que no exista por diversos motivos y al no contar con métodos implementados de sustitución de datos faltantes el riesgo es Alto.",null,null,null,null,null,"No se cuenta con métodos de sustitución de datos faltantes implementados. Cuando falta información ya sea por descuido, pérdida o porque se identifica una falta de calibración con la frecuencia requerida, se resuelve de manera particular y en función de la naturaleza de los datos faltantes."]
[null,"RI1"]
[null,"RI2"]
[null,"RI3"]
[null,"RI4"]
[null,"RI5"]
[null,"RI6"]
[null,"RI7"]
[null,"RI8"]
[null,"RI9"]
[null,"RI10"]
[null,"RI11"]
[null,"RI12"]
[null,"RI13"]
[null,"RI14"]
[null,"RI15"]
[]
[]
[null,"b. Riesgos de Control"]
[null,"Registrar los riesgos de control identificados con las variables que se monitorean. Los riesgos de control refieren a aquellos riesgos  de que el sistema de control interno del establecimiento no pueda prevenir, detectar y/o corregir errores, como por ejemplo, los relacionados a la seguridad de los sistemas informáticos empleados para el resguardo de la información. El llenado de esta sección es OPCIONAL, no obstante, inducirá al Particpante a mejorar los controles de calidad que aseguren la certidumbre de la información generada, y por lo tanto, la certidumbre del reporte de emisiones.\n",null,null,null,null,null,null,null,null,"1. Clave predeterminada para identificar el riesgo de control.\n2. Describir el riesgo de control que se identifica.\n3. Indicar si considera que el riesgo es alto, medio o bajo, de acuerdo a la cantidad de informacipon relacionada y/o al impacto que potencialmente puede tener en las emisiones del establecimiento.\n4. Indicar si se han implementado medidas para reducir o controlar el riesgo, mencionando de manera general cuáles serían dichas medidas. En caso de que no se hayan implementado medidas, también deberá indicarse."]
[null,"Riesgo de Control (1)","Descripción del riesgo de control (2)\n",null,null,null,null,null,"Resultado de la evaluación de riesgos\n¿Qué tan probables y graves son los riesgos identificados, en relación con el volumen de emisiones anuales?\n(alto, medio, bajo) (3)",null,null,null,null,null,"Medidas de mitigación y/o control\n¿Qué medidas de mitigación y/o control se han implementado para minimizar los riesgos de control? (4)"]
[null,"RC_ej1","Falta de calibración de los equipos de medición (básculas y medidores de flujo másico). ",null,null,null,null,null,"Alto riesgo ya que no se tiene un seguimiento puntual de las calibraciones requeridas.",null,null,null,null,null,"Se capacita con frecuencia al personal involucrado, pero no se cuenta con evidencia documental de las calibraciones."]
[null,"RC_ej2","Bases de datos sin protección ni respaldo. ",null,null,null,null,null,"Alto riesgo dado que se puede perder la información por no tenerla bajo resguardo.",null,null,null,null,null,"No se cuenta con medidas. Se requiere respaldar la información e implementar controles de seguridad."]
[null,"RC_ej3","La información de GEI  se encuentra dispersa. ",null,null,null,null,null,"Alto riesgo ua que no se cuenta con un sistema de información de GEI centralizado.",null,null,null,null,null,"Se asigna a un responsable de cotejar y revisar exhaustivamente la información de GEI, pero no se tienen procedimientos documentados."]
[null,"RC_ej4","Errores en los algoritmos del sistema informático de captura de información, dado que no se han realizado los mantenimientos adecuados al sistema.",null,null,null,null,null,"Alto riesgo de que se estén cometiendo errores persistentes por no dar mantenimiento al sistema.",null,null,null,null,null,"No se cuenta con medidas."]
[null,"RC_ej5","La herramienta de cálculo de emisiones no está validada ni cuenta con los controles adecuados para garantizar el resultado.",null,null,null,null,null,"Alto riesgo de cometer errores en la estimación ya que no se ha corroborado que las fórmulas programadas, los factores de emisión y los poderes caloríficos de los combustibles, sean los correctos.",null,null,null,null,null,"Se coteja el resultado con la herramienta de la calculadora del RENE, pero no se ha validado la herramienta de cálculo desde que fue adquirida por un proveedor externo, lo que ocasiona que se sigan empleando poderes caloríficos y factor de emisión eléctrico anteriores."]
[null,"RC1"]
[null,"RC2"]
[null,"RC3"]
[null,"RC4"]
[null,"RC5"]
[null,"RC6"]
[null,"RC7"]
[null,"RC8"]
[null,"RC9"]
[null,"RC10"]
[null,"RC11"]
[null,"RC12"]
[null,"RC13"]
[null,"RC14"]
[null,"RC15"]
[]
[]
[null,"c. Resultados de la Evaluación de Riesgos"]
[]
[null,"Listado de las causas más relevantes de reportar errores y desviaciones del plan de monitoreo"]
[null,"EJEMPLO:\nLa rotación del personal es una causa frecuente al cometer errores en la recopilación y manejo de información de GEI, dado que no se capacita debidamente al personal que se integra al equipo de trabajo, lo que ocasiona que no exista comprensión de los procedimientos (curva de aprendizaje es muy lenta) y tampoco se induce la comprensión en la aplicación de metodologías.\nEl sistema de información no está centralizado. Existen diversas áreas involucradas (finanzas, seguridad e higiene, mantenimiento, almacén, operaciones y la dirección general) que no se comunican adecuadamente.\nAunque se cuenta con un sistema informático para el registro de información de GEI, éste no recopila 100% de la información, por lo que hay fuentes que se están excluyendo en el reporte, que aunque son menores, aportan aproximadamente el 20% de las emisiones totales Además, desde su implementación en el año 2016, no se ha realizado ningún mantenimiento ni evaluación o mejora al sistema antes mencionado."]
[]
[]
[]
[]
[]
[]
[]
[]
[]
[]
[]
[]
[]
[]
[]
[]
[]
[]
[]
[]
[]
[]
[null,"Descripción del método utilizado para determinar y evaluar los riesgos de error y desviación."]
[]
[]
[]
[]
[]
[]
[]
[]
[]
[]
[]
[]
[]
[]
[]
[null,"Razones por las que las medidas de control proporcionadas son suficientes para contrarrestar los riesgos identificados y para prevenir errores y desviaciones del plan de monitoreo"]
[null,"EJEMPLO:\nPara las fuentes principales de emisión se considera que las medidas de control son suficientes dado que se cuenta con programas de auditorías internas, inspecciones rutinarias y supervisiones de la dirección. No obstante, se cuenta con áreas de oportunidad que se requieren fortalecer como la mejora del sistema informático y la estrategia de comunicación entre las áreas involucradas."]
[]
[]
[]
[]
[]
[]
[]
[]
[]
[]
[]
[]
[]
[]
[]
[]
[]
[]
[null,"Notas Aclaratorias"]
[]
[null,"Notas adicionales"]

{"sheet":"6.Emisiones CO2","index":7,"n_rows":17,"n_cols":16,"rows_kept":17,"cut":false,"hidden":false,"merged":[[9,12,9,13],[10,12,10,13],[12,12,12,13],[11,12,11,13],[9,4,9,5],[10,4,10,5],[11,4,11,5],[9,10,9,11],[10,10,10,11],[11,10,11,11],[12,10,12,11],[9,6,9,7],[10,6,10,7],[11,6,11,7],[1,0,3,0],[5,1,5,10],[1,1,3,3],[7,12,7,13],[8,12,8,13],[6,1,6,8],[6,9,6,15],[8,10,8,11],[7,10,7,11],[7,6,7,7],[8,6,8,7],[7,4,7,5],[8,4,8,5],[16,12,16,13],[13,10,13,11],[13,12,13,13],[15,10,15,11],[15,12,15,13],[14,10,14,11],[14,12,14,13],[14,4,14,5],[16,10,16,11],[12,4,12,5],[15,4,15,5],[16,4,16,5],[12,6,12,7],[13,6,13,7],[14,6,14,7],[15,6,15,7],[16,6,16,7],[13,4,13,5]]}
[]
[null,"6. Emisiones de CO2",null,null,null,"Contenido","Hoja Anterior","Hoja Siguiente"]
[]
[]
[]
[null,"a. Reporte de Emisiones de CO2 - Emisiones Directas por fuentes fijas y procesos industriales"]
[null,"Indicar las emisiones cubiertas por el Programa de Prueba del Sistema de Comercio de Emisiones (emisiones directas por fuentes fijas y procesos industriales) que desde el 2014 se han reportado a la Cédula de Operación Anual. Se deberá recopilar la información a partir de los reportes de emisiones y constancias de recepción de la COA de los años anteriores.\n1. De manera predeterminada, se indica el año de reporte del cual se deben registrar las emisiones cubiertas por el Programa de Prueba.\n2. Indicar si se reportaron emisiones por combustión en fuente fija en el año correspondiente (seleccionar si / no).\n3. Indicar si se reportaron emisiones por procesos industriales en el año correspondiente (seleccionar si/ no).\n4. Si en (2) se seleccionó \"si\", proporcionar el valor numérico de las toneladas de CO2 reportadas en el año correspondiente, provenientes de fuente fija.\n\n",null,null,null,null,null,null,null,"5. Si en (3) se seleccionó \"si\", proporcionar el valor numérico de las toneladas de CO2 reportadas en el año correspondiente, provenientes de procesos industriales.\n6. Indicar el número de bitácora por medio del cual se confirmó la entrega de la COA en el año correspondiente.\n7. Indicar si se realizaron correcciones a la COA del año correspondiente (seleccionar si / no).\n8. En caso afirmativo, indicar el valor numérico de las correcciones presentadas en toneladas de CO2 por combustión en fuente fija.\n9. En caso afirmativo, indicar el valor numérico de las correcciones presentadas en toneladas de CO2 por procesos industriales.\n10. Indique la fecha en que presentó a SEMARNAT el trámite SEMARNAT-10-001 (https://www.gob.mx/semarnat/documentos/tramite-semarnat-10-001)\n11. Proporcionar el nombre y cargo de la persona responsable del reporte el año correspondiente."]
[null,"Año de Reporte (1)","Reportó Emisiones por combustión en fuente fija (2)","Reportó Emisiones por procesos industriales (3)","Emisiones de CO2 por fuente fija (4)",null,"Emisiones de CO2 por proceso industrial (5)",null,"Número de bitácora (Acuse de recibo) del reporte a SEMARNAT (6)","Se realizaron correciones posteriores a la COA (7)","Emisiones de CO2 por fuente fija (8)",null,"Emisiones de CO2 por proceso industrial (9)",null,"Fecha de presentación de correcciones ante SEMARNAT (10)","Responsable del reporte (11)"]
[null,2014]
[null,2015]
[null,2016]
[null,2017]
[null,2018]
[null,2019]
[null,2020]
[null,2021]
[null,2022]

{"sheet":"7.Otras emisiones","index":8,"n_rows":25,"n_cols":14,"rows_kept":25,"cut":false,"hidden":false,"merged":[[5,1,5,12],[1,0,3,0],[1,1,3,3],[6,1,6,7],[6,8,6,13]]}
[]
[null,"7. Otras Emisiones",null,null,"Contenido","Hoja Anterior","Hoja Siguiente"]
[]
[]
[]
[null,"a. Reporte de otras emisiones (OPCIONAL)"]
[null,"En esta sección se podrán registrar otras emisiones directas e indirectas del establecimiento o Participante para facilitar la centralización de la información y potenciar la utilidad del Plan.\n1. Clave predeterminada para identificar la emisión no cubierta por el Programa de Prueba.\n2. De la lista desplegable, seleccionar si la emisión a registrar es directa o indirecta.\n3. De la lista desplegable, indicar el tipo de fuente de la emisión no cubierta por el Programa de Prueba: fija o móvil para emisiones directas, consumo de energía eléctrica o térmica para emisiones indirectas.\n4.Indicar el GEI al que corresponde la emisión que se registra, seleccionándolo del listado desplegable.\n5. Indicar el proceso al que se asocia la emisión. Por ejemplo: Transporte de piedra, flota vehicular de los empleados, consumo eléctrico de oficinas.\n6. Indicar la actividad específica a la que corresponde la emisión, proporcionando mayor información que en [5].",null,null,null,null,null,null,"7. Indicar el punto de emisión al que corresponde la emisión que se registra. Si el punto de emisión corresponde con uno de los registrados en la seccón 2d, señalar la clave identificadora correspondiente.\n8. De la lista desplegable, seleccionar la metodología empleada para el cálculo de la emisión no cubierta por el Programa de Prueba. El listado incluye las metodologías del RENE y la opción \"OTRA\".\n9. Indicar la fuente de información de la metodología; si corresponde al RENE o a OTRA.\n10. Indicar las toneladas del gas de corresponden con la emisión no cubierta por el Programa de Prueba.\n11. Indicar cualquier característica relevante que sea necesario señalar en torno a la emisión no cubierta por el Programa de Prueba. En caso de haber indicado uso de metodlogía distinta a las del RENE, indicar en este espacio la metodología aplicada.\n12.De manera breve, señalar el procedimiento de recopilación y manejo de información que tiene que ver con la emisión no cubierta por el Programa de Prueba. Por ejemplo \"Recopilación de facturas del proveedor de combustible\".\n12. Indicar el cargo y área responsable de la recopilación y manejo de la información asociada a la emisión no cubierta por el Programa de Prueba."]
[null,"Emisión (1)","Tipo de Emisión (2)","Tipo de Fuente (3)","GEI Emitido (4)","Proceso asociado (5)","Actividad asociada (6)","Punto de emisión (7)","Metodología de cálculo (8)","Fuente bibliográfica (9)","ton del gas (10)","Comentarios adicionales (11)","Procedimientos de recopilación y manejo (12)","Cargo y área responsable (13)"]
[null,"EMI_ej1","Directa","Fuente móvil","CO2","Flota vehicular","Uso particular de los empleados de confianza","n/a","Combustion en fuentes móviles","RENE",1500,"Flota de 50 automóviles a gasolina y 10 camionetas a diésel.","El área de compras recopila y registra las facturas de gasolina mensualmente","Asistente de compras"]
[null,"EMI_ej1","Indirecta","Consumo de electricidad","CO2","Consumo de electricidad","Consumo de electricidad","n/a","Cálculo de emisiones indirectas por consumo eléctrico","RENE",3500,"Consumo de 5689 kwh anuales en la instalación. El cálculo se realizó con factor de emisión eléctrico publicado por SEMARNAT.","El área de compras recopila y registra los recibos de pago de electricidad (CFE)","Asistente de compras"]
[null,"EMI1","Directa"]
[null,"EMI2","Indirecta",null,null,null,null,null,null,{"$f":"IF(D12=\"\",\"\",IF(D12=\"OTRA\", \"ESPECIFIQUE\", VLOOKUP('3.Metodologias'!D12,Catalogos!$B$101:$C$119,2)))","v":""}]
[null,"EMI3","Directa",null,null,null,null,null,null,{"$f":"IF(D13=\"\",\"\",IF(D13=\"OTRA\", \"ESPECIFIQUE\", VLOOKUP('3.Metodologias'!D13,Catalogos!$B$101:$C$119,2)))","v":""}]
[null,"EMI4","Directa",null,null,null,null,null,null,{"$f":"IF(D14=\"\",\"\",IF(D14=\"OTRA\", \"ESPECIFIQUE\", VLOOKUP('3.Metodologias'!D14,Catalogos!$B$101:$C$119,2)))","v":""}]
[null,"EMI5","Directa",null,null,null,null,null,null,{"$f":"IF(D15=\"\",\"\",IF(D15=\"OTRA\", \"ESPECIFIQUE\", VLOOKUP('3.Metodologias'!D15,Catalogos!$B$101:$C$119,2)))","v":""}]
[null,"EMI6","Directa",null,null,null,null,null,null,{"$f":"IF(D16=\"\",\"\",IF(D16=\"OTRA\", \"ESPECIFIQUE\", VLOOKUP('3.Metodologias'!D16,Catalogos!$B$101:$C$119,2)))","v":""}]
[null,"EMI7","Directa",null,null,null,null,null,null,{"$f":"IF(D17=\"\",\"\",IF(D17=\"OTRA\", \"ESPECIFIQUE\", VLOOKUP('3.Metodologias'!D17,Catalogos!$B$101:$C$119,2)))","v":""}]
[null,"EMI8","Directa",null,null,null,null,null,null,{"$f":"IF(D18=\"\",\"\",IF(D18=\"OTRA\", \"ESPECIFIQUE\", VLOOKUP('3.Metodologias'!D18,Catalogos!$B$101:$C$119,2)))","v":""}]
[null,"EMI9","Directa",null,null,null,null,null,null,{"$f":"IF(D19=\"\",\"\",IF(D19=\"OTRA\", \"ESPECIFIQUE\", VLOOKUP('3.Metodologias'!D19,Catalogos!$B$101:$C$119,2)))","v":""}]
[null,"EMI10","Directa",null,null,null,null,null,null,{"$f":"IF(D20=\"\",\"\",IF(D20=\"OTRA\", \"ESPECIFIQUE\", VLOOKUP('3.Metodologias'!D20,Catalogos!$B$101:$C$119,2)))","v":""}]
[null,"EMI11","Directa",null,null,null,null,null,null,{"$f":"IF(D21=\"\",\"\",IF(D21=\"OTRA\", \"ESPECIFIQUE\", VLOOKUP('3.Metodologias'!D21,Catalogos!$B$101:$C$119,2)))","v":""}]
[null,"EMI12","Directa",null,null,null,null,null,null,{"$f":"IF(D22=\"\",\"\",IF(D22=\"OTRA\", \"ESPECIFIQUE\", VLOOKUP('3.Metodologias'!D22,Catalogos!$B$101:$C$119,2)))","v":""}]
[null,"EMI13","Directa",null,null,null,null,null,null,{"$f":"IF(D23=\"\",\"\",IF(D23=\"OTRA\", \"ESPECIFIQUE\", VLOOKUP('3.Metodologias'!D23,Catalogos!$B$101:$C$119,2)))","v":""}]
[null,"EMI14","Directa",null,null,null,null,null,null,{"$f":"IF(D24=\"\",\"\",IF(D24=\"OTRA\", \"ESPECIFIQUE\", VLOOKUP('3.Metodologias'!D24,Catalogos!$B$101:$C$119,2)))","v":""}]
[null,"EMI15","Directa",null,null,null,null,null,null,{"$f":"IF(D25=\"\",\"\",IF(D25=\"OTRA\", \"ESPECIFIQUE\", VLOOKUP('3.Metodologias'!D25,Catalogos!$B$101:$C$119,2)))","v":""}]

{"sheet":"8.Registro de Verificaciones","index":9,"n_rows":30,"n_cols":13,"rows_kept":30,"cut":false,"hidden":false,"merged":[[1,1,3,4],[1,0,3,0],[11,4,11,12],[12,4,12,12],[7,1,7,12],[8,1,8,2],[8,3,8,4],[8,5,8,6],[8,7,8,8],[8,9,8,10],[9,3,9,4],[9,5,9,6],[9,7,9,8],[9,9,9,10],[9,1,9,2],[6,1,6,12],[15,1,15,12],[10,1,10,3],[11,1,11,3],[10,4,10,12],[12,1,12,3],[13,1,13,3],[13,4,13,12],[16,9,16,10],[18,1,18,3],[18,4,18,12],[19,1,19,3],[19,4,19,12],[17,1,17,2],[17,3,17,4],[17,5,17,6],[17,7,17,8],[17,9,17,10],[16,1,16,2],[16,3,16,4],[16,5,16,6],[16,7,16,8],[24,3,24,4],[24,5,24,6],[24,7,24,8],[24,9,24,10],[25,1,25,2],[25,3,25,4],[25,5,25,6],[25,7,25,8],[5,1,5,12],[29,1,29,3],[29,4,29,12],[25,9,25,10],[27,1,27,3],[27,4,27,12],[28,1,28,3],[28,4,28,12],[20,1,20,3],[20,4,20,12],[26,1,26,3],[26,4,26,12],[21,1,21,3],[21,4,21,12],[23,1,23,12],[24,1,24,2]]}
[]
[null,"8. Registro de Verificaciones",null,null,null,null,"Contenido","Hoja Anterior","Hoja Siguiente"]
[]
[]
[]
[null,"a. Registro de Verificaciones para el Programa de Prueba del Sistema de Comercio de Emisiones"]
[null,"Conformar el resumen del historial de las verificaciones que forman parte del Programa de Prueba. \nDe acuerdo a las instrucciones de cada celda, proporcionar los datos solicitados que se asocian a las verificaciones correspondientes al Programa de Prueba. La información solicitada se encuentra en el dictamen y el informe de verificación del año correspondiente. Consultar Guía de llenado del Plan de Monitoreo para mayor detalle."]
[null,"Año de reporte de emisiones: 2020"]
[null,"Fecha de la verificación",null,"OC-VV-GEI que realizó la verificación",null,"Emisiones Directas Reportadas (tCO2)",null,"Emisiones Directas Verificadas (tCO2)",null,"Emisiones Directas Corregidas (tCO2) [si aplica]",null,"Materialidad del reporte original","Materialidad del reporte corregido (si aplica)"]
[]
[null,"Folio:"]
[null,"Líder verificador"]
[null,"Hallazgos de la verificación (no conformidades u observaciones)"]
[null,"Atención de hallazgos"]
[]
[null,"Año de reporte de emisiones: 2021"]
[null,"Fecha de la verificación",null,"OC-VV-GEI que realizó la verificación",null,"Emisiones Directas Reportadas (tCO2)",null,"Emisiones Directas Verificadas (tCO2)",null,"Emisiones Directas Corregidas (tCO2) [si aplica]",null,"Materialidad del reporte original","Materialidad del reporte corregido (si aplica)"]
[]
[null,"Folio:"]
[null,"Líder verificador"]
[null,"Hallazgos de la verificación (no conformidades u observaciones)"]
[null,"Atención de hallazgos"]
[]
[null,"Año de reporte de emisiones: 2022"]
[null,"Fecha de la verificación",null,"OC-VV-GEI que realizó la verificación",null,"Emisiones Directas Reportadas (tCO2)",null,"Emisiones Directas Verificadas (tCO2)",null,"Emisiones Directas Corregidas (tCO2) [si aplica]",null,"Materialidad del reporte original","Materialidad del reporte corregido (si aplica)"]
[]
[null,"Folio:"]
[null,"Líder verificador"]
[null,"Hallazgos de la verificación (no conformidades u observaciones)"]
[null,"Atención de hallazgos"]

{"sheet":"9.Anexos","index":10,"n_rows":28,"n_cols":9,"rows_kept":28,"cut":false,"hidden":false,"merged":[[27,2,27,4],[27,5,27,7],[27,8,27,10],[25,2,25,4],[25,5,25,7],[25,8,25,10],[26,2,26,4],[26,5,26,7],[26,8,26,10],[14,8,14,10],[15,2,15,4],[15,5,15,7],[15,8,15,10],[16,2,16,4],[16,5,16,7],[16,8,16,10],[11,8,11,10],[12,2,12,4],[12,5,12,7],[12,8,12,10],[13,2,13,4],[13,5,13,7],[13,8,13,10],[23,5,23,7],[23,8,23,10],[24,5,24,7],[24,8,24,10],[9,2,9,4],[9,5,9,7],[9,8,9,10],[10,2,10,4],[10,5,10,7],[10,8,10,10],[20,5,20,7],[20,8,20,10],[21,5,21,7],[21,8,21,10],[22,5,22,7],[22,8,22,10],[17,8,17,10],[18,5,18,7],[18,8,18,10],[19,5,19,7],[19,8,19,10],[24,2,24,4],[23,2,23,4],[22,2,22,4],[21,2,21,4],[20,2,20,4],[19,2,19,4],[18,2,18,4],[17,2,17,4],[8,2,8,4],[8,5,8,7],[17,5,17,7],[11,2,11,4],[11,5,11,7],[14,2,14,4],[14,5,14,7],[8,8,8,10],[7,8,7,10],[1,0,3,0],[1,1,3,3],[5,1,5,9],[7,2,7,4],[7,5,7,7],[6,1,6,10]]}
[]
[null,"9. Anexos",null,null,null,"Contenido","Hoja Anterior","Inicio"]
[]
[]
[]
[null,"Anexos"]
[null,"Enlistar los archivos anexos que sustentan el Plan de Monitoreo. El Participante podrá presentar con el Plan de Monitoreo los documentos que considere que sustentan el mismo, como por ejemplo, hojas de cálculo, facturas de compra de combustibles, cerificados de calibración de equipos de medición, bases de datos, etcétera. \nLos Partipantes podrán adjuntar lo que consideren necesario. La presente sección se llenará voluntariamente para identificar aquellos documentos que sustenten el Plan de Monitoteo, y que, en su caso, se presenten junto con el Plan ante la Secretaría.\nLas instrucciones de llenado se muestran en cada celda de la tabla."]
[null,"Anexo (1)","Nombre (2)",null,null,"Descripción (3)",null,null,"Comentarios adicionales (4)"]
[null,"Anexo 1"]
[null,"Anexo 2"]
[null,"Anexo 3"]
[null,"Anexo 4"]
[null,"Anexo 5"]
[null,"Anexo 6"]
[null,"Anexo 7"]
[null,"Anexo 8"]
[null,"Anexo 9"]
[null,"Anexo 10"]
[null,"Anexo 11"]
[null,"Anexo 12"]
[null,"Anexo 13"]
[null,"Anexo 14"]
[null,"Anexo 15"]
[null,"Anexo 16"]
[null,"Anexo 17"]
[null,"Anexo 18"]
[null,"Anexo 19"]
[null,"Anexo 20"]

{"sheet":"Catalogos","index":11,"n_rows":120,"n_cols":14,"rows_kept":120,"cut":false,"hidden":true,"merged":[]}
[null,"Sector",null,"Gas Emitido","Gas Indirecto",null,"RENE",null,"Directa",null,null,null,null,"CO2"]
["I","Energia",null,"CO2","CO2",null,"Otro",null,"Indirecta",null,null,null,null,"CH4"]
["II","Industria",null,"CH4",null,null,null,null,null,null,null,null,null,"N20"]
[null,null,null,"N2O",null,null,null,null,null,null,null,null,null,"Carbono Negro"]
[null,"Subsector Energía",null,null,null,null,null,null,null,null,null,null,null,"CFC"]
["a","Hidrocarburos",null,null,null,null,null,"Explotación, producción, transporte y distribución de hidrocaburos",null,null,null,null,null,"HCFC"]
["b","Electricidad",null,null,null,null,null,"Generación, transmisión y distribución de electricidad. ",null,null,null,null,null,"PFC"]
[null,null,null,null,null,null,null,null,null,null,null,null,null,"SF6"]
[null,"Subsector Industria",null,null,null,null,null,"Subsector Industria",null,null,null,null,null,"NF3"]
["a","Automotriz",null,null,null,null,null,"Industria automotriz",null,null,null,null,null,"HFC"]
["b","Cementera_y_calera",null,null,null,null,null,"Industria cementera y calera",null,null,null,null,null,"Eteres halogenados"]
["c","Química",null,null,null,null,null,"Industria química",null,null,null,null,null,"Halocarbonos"]
["d","Alimentos_y_bebidas",null,null,null,null,null,"Industria de alimentos y bebidas"]
["e","Vidrio",null,null,null,null,null,"Industria del vidrio"]
["f","Siderúrgica",null,null,null,null,null,"Industria siderúrgica"]
["g","Metalúrgica",null,null,null,null,null,"Industria metalúrgica"]
["h","Minera",null,null,null,null,null,"Industria minera"]
["i","Petroquímica",null,null,null,null,null,"Industria petroquímica"]
["j","Celulosa_y_papel",null,null,null,null,null,"Industria de celulosa y papel"]
["k","Otros",null,null,null,null,null,"Otros"]
[]
[]
[null,"Variable Medida",null,null,"Categoria",null,null,"Reporte",null,"Procesos Industriales"]
[null,"Tiempo",null,null,"De-minimis",null,null,"Si",null,"Fuentes móviles"]
[null,"Temperatura",null,null,"Menor",null,null,"No",null,"Emisiones Fugitivas"]
[null,"Masa",null,null,"Mayor",null,null,null,null,"Emisiones de actividades agropecuarias"]
[null,"Presión"]
[null,"Flujo volumétrico"]
[null,"Flujo másico",null,null,null,null,null,null,null,"Consumo de electricidad"]
[null,"Potencia eléctrica",null,null,null,null,null,null,null,"Consumo de energía térmica"]
[null,"Voltaje"]
[null,"Corriente eléctrica"]
[null,"Resistencia eléctrica"]
[]
[]
[null,"Actividades"]
[null,"Combustion of fuels",null,null,null,null,"Combustión de combustibles",null,null,null,"CO2","III"]
[null,"Refining of mineral oil "]
[null,"Production of coke"]
[null,"Metal ore roasting or sintering"]
[null,"Production of pig iron or steel",null,null,null,null,"Producción de hierro, acero o ferroaleaciones",null,null,null,"CO2","XVIII"]
[null,"Production or processing of ferrous metals"]
[null,"Production of primary aluminium",null,null,null,null,"Producción de aluminio",null,null,null,"CO2","XIX"]
[null,"Production of secondary aluminium"]
[null,"Production or processing of non-ferrous metals"]
[null,"Production of cement clinker",null,null,null,null,"Producción de cemento",null,null,null,"CO2","V"]
[null,"Production of lime, or calcination of dolomite/magnesite",null,null,null,null,"Producción de cal",null,null,null,"CO2","VI"]
[null,"Manufacture of glass",null,null,null,null,"Producción de vidrio",null,null,null,"CO2","VII"]
[null,"Manufacture of ceramics",null,null,null,null,"Producción de cerámicos",null,null,null,"CO2","VII"]
[null,"Manufacture of mineral wool"]
[null,"Production or processing of gypsum or plasterboard"]
[null,"Production of pulp"]
[null,"Production of paper or cardboard"]
[null,"Production of carbon black",null,null,null,null,"Producción de negro de humo",null,null,null,"CO2","XVI"]
[null,"Production of nitric acid",null,null,null,null,"Producción de ácido nítrico",null,null,null,"N2O","IX"]
[null,"Production of adipic acid",null,null,null,null,"Producción de ácido adípico",null,null,null,"N2O","X"]
[null,"Production of glyoxal and glyoxylic acid",null,null,null,null,"Producción de caprolactama, glioxal, ácido glioxílico",null,null,null,"N2O","XI"]
[null,"Production of ammonia",null,null,null,null,"Producción de amoniaco",null,null,null,"CO2","VIII"]
[null,"Production of bulk chemicals"]
[null,"Production of hydrogen and synthesis gas"]
[null,"Production of soda ash and sodium bicarbonate",null,null,null,null,"Producción de carbonato de sodio (ceniza de sosa)",null,null,null,"CO2","XIV"]
[null,"Capture of greenhouse gases under Directive 2009/31/EC"]
[null,"Transport of greenhouse gases under Directive 2009/31/EC"]
[null,"Storage of greenhouse gases under Directive 2009/31/EC"]
[null,null,null,null,null,null,"Producción de carburos",null,null,null,"CO2","XII"]
[null,null,null,null,null,null,"Producción de dióxido de titanio",null,null,null,"CO2","XIII"]
[null,null,null,null,null,null,"Producción de petroquímicos",null,null,null,"CO2","XV"]
[null,null,null,null,null,null,"Producción de magnesio",null,null,null,"CO2","XX"]
[null,null,null,null,null,null,"Producción de plomo",null,null,null,"CO2","XXI"]
[null,null,null,null,null,null,"Producción de zinc",null,null,null,"CO2","XXII"]
[]
[]
[]
[]
[null,"Combustión de combustibles","CO2","III",null,{"$f":"D75&\" - \"&B75","v":"III - Combustión de combustibles"}]
[null,"Producción de hierro, acero o ferroaleaciones","CO2","XVIII",null,{"$f":"D76&\" - \"&B76","v":"XVIII - Producción de hierro, acero o ferroaleaciones"}]
[null,"Producción de aluminio","CO2","XIX",null,"XIX - Producción de aluminio"]
[null,"Producción de cemento","CO2","V",null,"V - Producción de cemento"]
[null,"Producción de cal","CO2","VI",null,"VI - Producción de cal"]
[null,"Producción de vidrio","CO2","VII",null,"VII - Producción de vidrio"]
[null,"Producción de cerámicos","CO2","VII",null,"VII - Producción de cerámicos"]
[null,"Producción de negro de humo","CO2","XVI",null,"XVI - Producción de negro de humo"]
[null,"Producción de ácido nítrico","N2O","IX",null,"IX - Producción de ácido nítrico"]
[null,"Producción de ácido adípico","N2O","X",null,"X - Producción de ácido adípico"]
[null,"Producción de caprolactama, glioxal, ácido glioxílico","N2O","XI",null,"XI - Producción de caprolactama, glioxal, ácido glioxílico"]
[null,"Producción de amoniaco","CO2","VIII",null,"VIII - Producción de amoniaco"]
[null,"Producción de carbonato de sodio (ceniza de sosa)","CO2","XIV",null,"XIV - Producción de carbonato de sodio (ceniza de sosa)"]
[null,"Producción de carburos","CO2","XII",null,"XII - Producción de carburos"]
[null,"Producción de dióxido de titanio","CO2","XIII",null,"XIII - Producción de dióxido de titanio"]
[null,"Producción de petroquímicos","CO2","XV",null,"XV - Producción de petroquímicos"]
[null,"Producción de magnesio","CO2","XX",null,"XX - Producción de magnesio"]
[null,"Producción de plomo","CO2","XXI",null,"XXI - Producción de plomo"]
[null,"Producción de zinc","CO2","XXII",null,"XXII - Producción de zinc"]
[null,"OTRA"]
[]
[null,"I - Sin Metodología Específica"]
[null,"II - Fuentes Móviles"]
[null,"IV - Consumo de Energía Eléctrica"]
[]
[null,"Metodologías"]
[null,"III - Combustión de combustibles","RENE"]
[null,"V - Producción de cemento","RENE"]
[null,"VI - Producción de cal","RENE"]
[null,"VII - Producción de cerámicos","RENE"]
[null,"VII - Producción de vidrio","RENE"]
[null,"VIII - Producción de amoniaco","RENE"]
[null,"IX - Producción de ácido nítrico","RENE"]
[null,"X - Producción de ácido adípico","RENE"]
[null,"XI - Producción de caprolactama, glioxal, ácido glioxílico","RENE"]
[null,"XII - Producción de carburos","RENE"]
[null,"XIII - Producción de dióxido de titanio","RENE"]
[null,"XIV - Producción de carbonato de sodio (ceniza de sosa)","RENE"]
[null,"XIX - Producción de aluminio","RENE"]
[null,"XV - Producción de petroquímicos","RENE"]
[null,"XVI - Producción de negro de humo","RENE"]
[null,"XVIII - Producción de hierro, acero o ferroaleaciones","RENE"]
[null,"XX - Producción de magnesio","RENE"]
[null,"XXI - Producción de plomo","RENE"]
[null,"XXII - Producción de zinc","RENE"]
[null,"OTRA"]

{"sheet":"Ejemplos","index":12,"n_rows":22,"n_cols":27,"rows_kept":22,"cut":false,"hidden":true,"merged":[[20,15,20,16],[20,17,20,19],[20,20,20,22],[20,23,20,25],[20,26,20,28],[21,15,21,16],[21,17,21,19],[21,20,21,22],[21,23,21,25],[21,26,21,28],[18,15,18,16],[18,17,18,19],[18,20,18,22],[18,23,18,25],[18,26,18,28],[19,15,19,16],[19,17,19,19],[19,20,19,22],[19,23,19,25],[19,26,19,28],[16,15,16,16],[16,17,16,19],[16,20,16,22],[16,23,16,25],[16,26,16,28],[17,15,17,16],[17,17,17,19],[17,20,17,22],[17,23,17,25],[17,26,17,28],[20,0,20,1],[20,2,20,3],[20,4,20,5],[20,6,20,7],[20,8,20,9],[21,0,21,1],[21,2,21,3],[21,4,21,5],[21,6,21,7],[21,8,21,9],[18,0,18,1],[18,2,18,3],[18,4,18,5],[18,6,18,7],[18,8,18,9],[19,0,19,1],[19,2,19,3],[19,4,19,5],[19,6,19,7],[19,8,19,9],[16,0,16,1],[16,2,16,3],[16,4,16,5],[16,6,16,7],[16,8,16,9],[17,0,17,1],[17,2,17,3],[17,4,17,5],[17,6,17,7],[17,8,17,9]]}
[]
[]
[]
[]
[]
[]
[]
[]
[]
[]
[]
[]
[]
[]
[]
[]
["Procedimiento",null,"Actividad asociada",null,"Dato de actividad",null,"Variable asociada",null,"Breve descripción del procedimiento",null,"Frecuencia de Monitoreo","Ubicación de los registros","Controles de Calidad",null,null,"Procedimiento",null,"[nombre]",null,null,"Descripción",null,null,"Área / Persona responsable de la implementación del procedimiento",null,null,"Responsabilidades en el procedimiento"]
["PRej1",null,"A1",null,"Consumo de combustible en m3",null,"Emisiones directas de CO2",null,"Se registra la cantidad de combustóleo del medidor del tanque a las 7 hr (m1) y a las 17 hr (m2) y se resta (m2 – m1). Se registra en bitácora y se captura en sistema informático.",null,"Diaria","Edificio de operaciones","Inspecciones rutinarias",null,null,"PRej1",null,"Registro de consumo de combustible",null,null,"Se registra la cantidad de combustóleo del medidor del tanque a las 7 hr y una segunda medición a las 18 hr y se resta. Se registra en bitácora y se captura en sistema informático.",null,null,"Asistente operativo de la Gerencia de Medio Ambiente",null,null,"Lectura y registro del medidor del tanque de combustóleo a las 7 hr. Un segundo asistente registra la toma de las 17 hr. Captura diaria de información en el sistema electrónico. Realiza la resta entre la segunda y la primera medición dentro del sistema electrónico."]
["PRej2",null,"A2",null,"Consumo de gas L.P,",null,"Emisiones directas de CO2",null," En un sistema informático interno con base en ORACLE, se captura los registros de las facturas de compra del proveedor.",null,"Semanal ","Oficina del área de constraloría","Auditoria interna mensual",null,null,"PRej2",null,"Registro de consumo de combustible",null,null,"En un sistema informático interno con base en ORACLE, se captura los registros de las facturas de compra del proveedor del gas L.P. Se registra fecha y consumo en m3 de manera semanal, ya que corresponde a la frecuencia con que se adquiere el gas.",null,null,"Superintendente de mantenimiento",null,null," Recopilación de las facturas de compra del gas L.P. con el área de finanzas. Registro de las facturas en el sistema informático interno semanalmente.\nEncargado del mantenimiento del sistema informático."]
["PRej3",null,"A3",null,"Consumo de coque de petróleo",null,"Emisiones directas de CO2",null,"En una base de datos de Excel se vacía la información de las facturas del proveedor del coque.",null,"Mensual","Gerencia de compras","Cotejo con informes de operación y producción",null,null,"PRej3",null,"Registro de compra de combustible.",null,null,"En una base de datos interna (eccel) se vacía la información de las facturas del proveedor: folio, fecha y hora en que se provee el combustible, responsable de la recepción, m3 del combustible, costo facturado por m3 y costo total.",null,null,"Coordinación de operaciones de la Gerencia de Desarrollo Sustentable",null,null,"Recopilación de las facturas del coque de petróleo (calcinación). Responsable de la captura de información en la base de datos interna de manera mensual. Responsable de cotejar las compras de combustible con los informes diarios de operación."]
["PRej4",null,"A4",null,"Composición del gas",null,"Poder calorifico ",null,"Con el cromatógrafo se obtiene el análisis de composición del gas, con el que se obtiene el poder calorífico.",null,"Semanal ","Laboratorio","Informes mensuales de laboratorio. Programa de capacitación anual a los técnicos analistas. Programa de calibración de acuerdo a especificaciones de equipos",null,null,"PRej4",null,"Medición del poder calorífico del gas",null,null,"De acuerdo a las especificaciones técnicas del cromatógrafo mod. G654 se realizan los análisis correspondientes para obtener el poder calorífico del gas.",null,null,"Coordinador de análisis y pruebas de laboratorio.",null,null," Realizar las muestras y análisis requeridos para la obtención del poder calorífico del gas natural que se emplea en los procesos del establecimiento. Responsable de la calibración del cromatrógrafo y de los resultados de los análisis. Reporta mensualmente."]
["PRej5",null,"A5",null,"Uso de refrigerante R-134A",null,"Emisiones directas de CO2",null,"Resguardo de órdenes de mantenimiento",null,"Mensual","Departamento de Seguridad e Higiene.","Auditorías internas semestrales. Cotejo con informes del proveedor.",null,null,"PRej5",null,"Resguardo de órdenes de mantenimiento de equipos de enfriamiento",null,null,"Cuando se recargan los equipos, el proveedor entrega la orden al personal del área operativa que se encuentre al mando. Posteriormente, se resguardan esas ordenes de mantenimiento en una carpeta identificada como “Ordenes de Mantenimiento”. La información se resguarda en un almacén con acceso restringido y solo puede ser consultada a solicitud",null,null,"Jefe de Seguridad y Medio Ambiente",null,null,"Responsable del resguardo de las órdenes de mantenimiento de equipos de refrigeración y aire acondicionado"]

{"sheet":"Hoja1","index":13,"n_rows":0,"n_cols":0,"rows_kept":0,"cut":false,"hidden":true,"merged":[]}